{"text_format":"1","workbook":"xlsx","n_sheets":18,"sheets":["PORTADA","MENU","OBLIGACIONES","BASES","APEND6","ANALISIS","FSBC","RIMSS","RISR_IMSS","CUOTASIMSS","CYVSS","IMSS","EMISIONM","EMISIONB","RESUMEN IMSS","TARIFA","GENERALES1","GENERAL"],"not_rendered":{"charts":0,"images":15,"macros":1,"external_links":0,"defined_names":10,"comments":2,"pivot_tables":0},"unopened":[],"bounds":{"document_bytes":16777216,"sheet_cells":100000,"rows_first":2000,"rows_last":500,"rows_between":2000,"halvings":0,"cell_chars":16384,"cell_head_chars":4096},"cells_cut":0,"cells_raw":0,"read":"whole","date_system":"1900"}

{"sheet":"PORTADA","index":0,"n_rows":261,"n_cols":21,"rows_kept":261,"cut":false,"hidden":false,"merged":[[1,1,10,9],[11,1,11,9],[12,1,26,9]]}
[]
[null,14896532]
[]
[]
[]
[]
[]
[]
[]
[]
[]
[null,"www.acfmsc.com"]
[null,14896532]
[]
[]
[]
[]
[]
[]
[]
[]
[]
[]
[]
[]
[]
[]
[]
[]
[]
[]
[]
[]
[]
[]
[]
[]
[]
[]
[]
[]
[]
[]
[]
[]
[]
[]
[]
[]
[]
[]
[]
[]
[]
[]
[]
[]
[]
[]
[]
[]
[]
[]
[]
[]
[]
[]
[]
[]
[]
[]
[]
[]
[]
[]
[]
[]
[]
[]
[]
[]
[]
[]
[]
[]
[]
[]
[null,null,null,null,null,null,null,null,null,null,null,null,null,null,null,null,null,"LEN2285"]
[]
[]
[]
[]
[null,null,null,null,null,null,null,null,null,null,null,null,null,null,null,null,null,"LEN2285"]
[]
[]
[]
[]
[]
[]
[]
[]
[]
[]
[]
[]
[]
[]
[]
[]
[]
[]
[]
[]
[]
[]
[]
[]
[]
[]
[]
[]
[]
[]
[]
[]
[]
[]
[]
[]
[]
[]
[]
[]
[]
[]
[]
[]
[]
[]
[]
[]
[]
[]
[]
[]
[]
[]
[]
[]
[]
[]
[]
[]
[]
[]
[]
[]
[]
[]
[]
[]
[]
[]
[]
[]
[]
[]
[]
[]
[]
[]
[]
[]
[]
[]
[]
[]
[]
[]
[]
[]
[]
[]
[]
[]
[]
[]
[]
[]
[]
[]
[]
[]
[]
[]
[]
[]
[]
[]
[]
[]
[]
[]
[]
[]
[]
[]
[]
[]
[]
[]
[]
[]
[]
[]
[]
[]
[]
[]
[]
[]
[]
[]
[]
[]
[]
[]
[]
[]
[]
[]
[]
[]
[]
[]
[]
[]
[]
[]
[]
[]
[]
[]
[]
[]
[]
[]
[]
[]
[]
[]
[]
[]
[]
[]
[]
[]
[]
[]
[]
[null,null,null,null,null,null,null,null,null,null,null,null,null,null,null,null,null,null,null,null,"RAN##67"]

{"sheet":"MENU","index":1,"n_rows":22,"n_cols":3,"rows_kept":22,"cut":false,"hidden":true,"merged":[]}
[]
[]
[]
[]
[null,"Descripción","Nombre de la hoja"]
[null,"Obligaciones de los patrones","OBLIGACIONES"]
[null,"Obligaciones laborales","LABORAL"]
[null,"Determinación de las bases de ISR","BASES"]
[null,"Apendice sies guía de llenado del SAT","APEND6"]
[null,"Analisis apéndice sies guía de llenado del SAT","ANALISIS"]
[null,"Determinación del salario base de cotización","FSBC"]
[null,"Determinación del salario diario integrado","SDI"]
[null,"Determinación de la retención del IMSS","RIMSS"]
[null,"Retención de ISR e IMSS","RISR_IMSS"]
[null,"Cuotas IMSS","CUOTASIMSS"]
[null,"Determinación de la cuota de Cesantía en Edad Avanzada y Vejez ","CYVSS"]
[null,"Determinación de las cuotas obrero patronales","IMSS"]
[null,"Determinación de la cuota obrero patronal MENSUAL","EMISIONM"]
[null,"Determinación de la cuota obrero patronal BIMESTRAL","EMISIONB"]
[null,"Resumen cuotas obrego patronales","RESUMEN IMSS"]
[null,"Tarifa ISR 2025","TARIFA"]
[null,"Datos generales para los cálculos","GENERALES1"]

{"sheet":"OBLIGACIONES","index":2,"n_rows":37,"n_cols":4,"rows_kept":37,"cut":false,"hidden":true,"merged":[[36,2,36,3],[9,2,9,3],[10,3,16,3],[17,2,17,3],[18,3,26,3],[27,2,27,3],[28,3,35,3]]}
[]
[]
[]
[null,null,null,"Ir al MENÚ"]
[]
[null,"Concepto","Disposición","Fundamento"]
[null,"Trabajador","Trabajador es la persona física que presta a otra, física o moral, un trabajo personal subordinado.\n\nPara los efectos de esta disposición, se entiende por trabajo toda actividad humana, intelectual o material, independientemente del grado de preparación técnica requerido por cada profesión u oficio.","Artículo 8 LFT"]
[null,"Trabajador de confianza","La categoría de trabajador de confianza depende de la naturaleza de las funciones desempeñadas y no de la designación que se dé al puesto.\n\nSon funciones de confianza las de dirección, inspección, vigilancia y fiscalización, cuando tengan carácter general, y las que se relacionen con trabajos personales del patrón dentro de la empresa o establecimiento.","Artículo 9 LFT"]
[null,"Patrón","Patrón es la persona física o moral que utiliza los servicios de uno o varios trabajadores.\n\nSi el trabajador, conforme a lo pactado o a la costumbre, utiliza los servicios de otros trabajadores, el patrón de aquél, lo será también de éstos.","Artículo 10 LFT"]
[null,"Obligaciones","Fiscales"]
[null,null,"Efectuar las retenciones señaladas en el artículo 96 de esta Ley","Artículo 99 LISR"]
[null,null,"Calcular el impuesto anual de las personas que les hubieren prestado servicios subordinados, en los términos del artículo 97 de esta Ley."]
[null,null,"Expedir y entregar comprobantes fiscales a las personas que reciban pagos por los conceptos a que se refiere este Capítulo, en la fecha en que se realice la erogación correspondiente"]
[null,null,"Solicitar, en su caso, las constancias y los comprobantes a que se refiere la fracción anterior, a las personas que contraten para prestar servicios subordinados, a más tardar dentro del mes siguiente a aquél en que se inicie la prestación del servicio y cerciorarse que estén inscritos en el Registro Federal de Contribuyentes."]
[null,null,"Solicitar a las personas que contraten para prestar servicios subordinados, les proporcionen los datos necesarios a fin de inscribirlas en el Registro Federal de Contribuyentes, o bien cuando ya hubieran sido inscritas con anterioridad, les proporcionen su clave del citado registro."]
[null,null,"Proporcionar a más tardar el 15 de febrero de cada año, a las personas a quienes les hubieran prestado servicios personales subordinados, constancia y el comprobante fiscal del monto total de los viáticos pagados en el año de calendario de que se trate, por los que se aplicó lo dispuesto en el artículo 93, fracción XVII de esta Ley."]
[null,null,"Presentar, ante las oficinas autorizadas a más tardar el 15 de febrero de cada año, declaración proporcionando información sobre las personas que hayan ejercido la opción a que se refiere la fracción VII del artículo 94 de esta Ley, en el año de calendario anterior, conforme a las reglas generales que al efecto expida el Servicio de Administración Tributaria."]
[null,null,"Seguro social"]
[null,null,"Registrarse e inscribir a sus trabajadores en el Instituto, comunicar sus altas y bajas, las modificaciones de su salario y los demás datos, dentro de plazos no mayores de cinco días hábiles","Artículo 15 LSS"]
[null,null,"Llevar registros, tales como nóminas y listas de raya en las que se asiente invariablemente el número de días trabajados y los salarios percibidos por sus trabajadores"]
[null,null,"Determinar las cuotas obrero patronales a su cargo y enterar su importe al Instituto"]
[null,null,"Proporcionar al Instituto los elementos necesarios para precisar la existencia, naturaleza y cuantía de las obligaciones a su cargo establecidas por esta Ley y los reglamentos que correspondan"]
[null,null,"Permitir las inspecciones y visitas domiciliarias que practique el Instituto, las que se sujetarán a lo establecido por esta Ley, el Código y los reglamentos respectivos"]
[null,null,"Tratándose de patrones que se dediquen en forma permanente o esporádica a la actividad de la construcción, deberán expedir y entregar a cada trabajador constancia escrita del número de días trabajados y del salario percibido, semanal o quincenalmente, conforme a los períodos de pago establecidos, las cuales, en su caso, podrán ser exhibidas por los trabajadores para acreditar sus derechos."]
[null,null,"Cumplir con las obligaciones que les impone el capítulo sexto del Título II de esta Ley, en relación con el seguro de retiro, cesantía en edad avanzada y vejez"]
[null,null,"Cumplir con las demás disposiciones de esta Ley y sus reglamentos"]
[null,null,"Expedir y entregar, tratándose de personas trabajadoras temporales o eventuales de la ciudad o del campo, constancia de los días laborados "]
[null,null,"INFONAVIT"]
[null,null,"Proceder a inscribirse e inscribir a sus trabajadores en el Instituto y dar los avisos a que se refiere el Artículo 31 de esta Ley","Artículo 29 LINFONAVIT"]
[null,null,"Determinar el monto de las aportaciones del cinco por ciento sobre el salario de los trabajadores a su servicio y efectuar el pago en las entidades receptoras que actúen por cuenta y orden del Instituto"]
[null,null,"Hacer los descuentos a sus trabajadores en sus salarios, conforme a lo previsto en los artículos 97 y 110 de la Ley Federal del Trabajo"]
[null,null,"Proporcionar al Instituto los elementos necesarios para precisar la existencia, naturaleza y cuantía de las obligaciones a su cargo, establecidas en esta Ley y sus disposiciones reglamentarias"]
[null,null,"Permitir las inspecciones y visitas domiciliarias que practique el Instituto, las que se sujetarán a lo establecido por esta Ley, el Código Fiscal de la Federación y sus disposiciones reglamentarias."]
[null,null,"Expedir y entregar, semanal o quincenalmente, a cada trabajador constancia escrita del número de días trabajados y del salario percibido, conforme a los períodos de pago establecidos, tratándose de patrones que se dediquen en forma permanente o esporádica a la actividad de la construcción"]
[null,null,"Presentar al Instituto copia con firma autógrafa del informe sobre la situación fiscal del contribuyente con los anexos referentes a las contribuciones por concepto de aportaciones patronales de conformidad con lo dispuesto en el Reglamento del Código Fiscal de la Federación, cuando en los términos de dicho Código, estén obligados a dictaminar por contador público autorizado sus estados financieros."]
[null,null,"Las demás previstas en la Ley y sus reglamentos"]
[null,null,"Ley Federal del Trabajo"]

{"sheet":"BASES","index":3,"n_rows":209,"n_cols":8,"rows_kept":209,"cut":false,"hidden":true,"merged":[[6,3,6,4],[6,5,6,6],[13,1,13,2],[13,3,13,6],[14,1,14,2],[14,3,14,5],[26,1,26,2],[26,3,26,5],[30,1,30,2],[30,3,30,6],[31,1,31,2],[31,3,31,5],[19,1,19,2],[19,3,19,6],[20,1,20,2],[20,3,20,5],[25,1,25,2],[25,3,25,6],[43,1,43,2],[43,3,43,5],[47,1,47,2],[47,3,47,6],[48,1,48,2],[48,3,48,5],[36,1,36,2],[36,3,36,6],[37,1,37,2],[37,3,37,5],[42,1,42,2],[42,3,42,6],[59,1,59,2],[59,3,59,5],[64,1,64,2],[64,3,64,6],[65,1,65,2],[65,3,65,5],[52,1,52,2],[52,3,52,6],[53,1,53,2],[53,3,53,5],[58,1,58,2],[58,3,58,6],[76,1,76,2],[76,3,76,5],[81,1,81,2],[81,3,81,6],[82,1,82,2],[82,3,82,5],[69,1,69,2],[69,3,69,6],[70,1,70,2],[70,3,70,5],[75,1,75,2],[75,3,75,6],[94,1,94,2],[94,3,94,5],[99,1,99,2],[99,3,99,6],[100,1,100,2],[100,3,100,5],[87,1,87,2],[87,3,87,6],[88,1,88,2],[88,3,88,5],[93,1,93,2],[93,3,93,6],[111,1,111,2],[111,3,111,5],[115,1,115,2],[115,3,115,6],[116,1,116,2],[116,3,116,5],[105,1,105,2],[105,3,105,6],[106,1,106,2],[106,3,106,5],[110,1,110,2],[110,3,110,6],[127,1,127,2],[127,3,127,5],[132,1,132,2],[132,3,132,6],[133,1,133,2],[133,3,133,5],[120,1,120,2],[120,3,120,6],[121,1,121,2],[121,3,121,5],[126,1,126,2],[126,3,126,6],[145,1,145,2],[145,3,145,5],[150,1,150,2],[150,3,150,6],[151,1,151,2],[151,3,151,5],[138,1,138,2],[138,3,138,6],[139,1,139,2],[139,3,139,5],[144,1,144,2],[144,3,144,6],[163,1,163,2],[163,3,163,5],[168,1,168,2],[168,3,168,6],[169,1,169,2],[169,3,169,5],[156,1,156,2],[156,3,156,6],[157,1,157,2],[157,3,157,5],[162,1,162,2],[162,3,162,6],[181,1,181,2],[181,3,181,5],[186,1,186,2],[186,3,186,6],[187,1,187,2],[187,3,187,5],[174,1,174,2],[174,3,174,6],[175,1,175,2],[175,3,175,5],[180,1,180,2],[180,3,180,6],[198,1,198,2],[198,3,198,5],[203,1,203,2],[203,3,203,6],[204,1,204,2],[204,3,204,5],[192,1,192,2],[192,3,192,6],[193,1,193,2],[193,3,193,5],[197,1,197,2],[197,3,197,6]]}
[]
[]
[]
[null,null,null,"Valor de la UMA",113.14,null,"Ir al MENÚ"]
[]
[]
[null,null,null,"Percepción",null,"Deducción"]
[null,"c_TipoPercepcion","Descripción","Gravado","Exento","Gravado","Exento"]
[null,1,"Sueldos, Salarios  Rayas y Jornales",null,null,null,null,{"$f":"IF(E9>0,HYPERLINK(\"#\"& \"APEND6!B17\",\"Ver apéndice\"),\"\")","v":""}]
[null,12,"Anticipo de salarios"]
[null,13,"Pagos hechos con exceso al trabajador"]
[null,20,"Ausencia (Ausentismo)"]
[null,"099","Ajuste a ingresos por sueldos y salarios gravados"]
[null,"(=) Neto pagado clave 001",null,{"$f":"IFERROR((D9+E9)-SUM(F10:F13),0)","v":0}]
[null,"(=) Base para ISR clave 001",null,{"$f":"IFERROR(D9-SUM(F10:F13),0)","v":0}]
[]
[null,2,"Gratificación Anual (Aguinaldo)",null,null,null,null,{"$f":"IF(E17>0,HYPERLINK(\"#\"& \"APEND6!E18\",\"Ver apéndice\"),\"\")","v":""}]
[null,24,"Ajuste en Gratificación Anual (Aguinaldo) Exento"]
[null,25,"Ajuste en Gratificación Anual (Aguinaldo) Gravado"]
[null,"(=) Neto pagado clave 002",null,{"$f":"IFERROR(D17+E17-G18-F19,0)","v":0}]
[null,"(=) Base para ISR clave 002",null,{"$f":"IFERROR(D17-F19,0)","v":0}]
[]
[null,3,"Participación de los Trabajadores en las Utilidades PTU",null,null,null,null,{"$f":"IF(E23>0,HYPERLINK(\"#\"& \"APEND6!E19\",\"Ver apéndice\"),\"\")","v":""}]
[null,26,"Ajuste en Participación de los Trabajadores en las Utilidades PTU Exento"]
[null,27,"Ajuste en Participación de los Trabajadores en las Utilidades PTU Gravado"]
[null,"(=) Neto pagado clave 003",null,{"$f":"IFERROR(D23+E23-G24-F25,0)","v":0}]
[null,"(=) Base para ISR clave 003",null,{"$f":"IFERROR(D23-F25,0)","v":0}]
[]
[null,4,"Reembolso de Gastos Médicos Dentales y Hospitalarios"]
[null,28,"Ajuste en Reembolso de Gastos Médicos Dentales y Hospitalarios Exento"]
[null,"(=) Neto pagado clave 004",null,{"$f":"IFERROR(D29+E29-G30,0)","v":0}]
[null,"(=) Base para ISR clave 004",null,{"$f":"IFERROR(D29,0)","v":0}]
[]
[null,5,"Fondo de Ahorro"]
[null,29,"Ajuste en Fondo de ahorro Exento"]
[null,"082","Ajuste en Fondo de ahorro Gravado"]
[null,"(=) Neto pagado clave 005",null,{"$f":"IFERROR(D34+E34-G35-F36,0)","v":0}]
[null,"(=) Base para ISR clave 005",null,{"$f":"IFERROR(D34-F36,0)","v":0}]
[]
[null,6,"Caja de ahorro"]
[null,30,"Ajuste en Caja de ahorro Exento"]
[null,"083","Ajuste en Caja de ahorro Gravado"]
[null,"(=) Neto pagado clave 006",null,{"$f":"IFERROR(D40+E40-G41-F42,0)","v":0}]
[null,"(=) Base para ISR clave 006",null,{"$f":"IFERROR(D40-F42,0)","v":0}]
[]
[null,9,"Contribuciones a Cargo del Trabajador Pagadas por el Patrón"]
[null,31,"Ajuste en Contribuciones a Cargo del Trabajador Pagadas por el Patrón Exento"]
[null,"(=) Neto pagado clave 009",null,{"$f":"IFERROR(D46+E46-G47,0)","v":0}]
[null,"(=) Base para ISR clave 009",null,{"$f":"IFERROR(D46,0)","v":0}]
[]
[null,10,"Premios por puntualidad"]
[null,32,"Ajuste en Premios por puntualidad Gravado"]
[null,"(=) Neto pagado clave 010",null,{"$f":"IFERROR(D51+E51-F52,0)","v":0}]
[null,"(=) Base para ISR clave 010",null,{"$f":"IFERROR(D51-F52,0)","v":0}]
[]
[null,11,"Prima de Seguro de vida"]
[null,33,"Ajuste en Prima de Seguro de vida Exento"]
[null,"084","Ajuste en Prima de Seguro de vida Gravado"]
[null,"(=) Neto pagado clave 011",null,{"$f":"IFERROR(D56+E56-G57-F58,0)","v":0}]
[null,"(=) Base para ISR clave 011",null,{"$f":"IFERROR(D56-F58,0)","v":0}]
[]
[null,12,"Seguro de Gastos Médicos Mayores"]
[null,34,"Ajuste en Seguro de Gastos Médicos Mayores Exento"]
[null,"085","Ajuste en Seguro de Gastos Médicos Mayores Gravado"]
[null,"(=) Neto pagado clave 012",null,{"$f":"IFERROR(D62+E62-G63-F64,0)","v":0}]
[null,"(=) Base para ISR clave 012",null,{"$f":"IFERROR(D62-F64,0)","v":0}]
[]
[null,13,"Cuotas Sindicales Pagadas por el Patrón"]
[null,35,"Ajuste en Cuotas Sindicales Pagadas por el Patrón Exento"]
[null,"(=) Neto pagado clave 013",null,{"$f":"IFERROR(D68+E68-G69,0)","v":0}]
[null,"(=) Base para ISR clave 013",null,{"$f":"IFERROR(D68,0)","v":0}]
[]
[null,14,"Subsidios por incapacidad"]
[null,36,"Ajuste en Subsidios por incapacidad Exento"]
[null,"086","Ajuste en Subsidios por incapacidad Gravado"]
[null,"(=) Neto pagado clave 014",null,{"$f":"IFERROR(D73+E73-G74-F75,0)","v":0}]
[null,"(=) Base para ISR clave 014",null,{"$f":"IFERROR(D73-F75,0)","v":0}]
[]
[null,15,"Becas para trabajadores y/o hijos"]
[null,37,"Ajuste en Becas para trabajadores y/o hijos Exento"]
[null,"087","Ajuste en Becas para trabajadores y/o hijos Gravado"]
[null,"(=) Neto pagado clave 015",null,{"$f":"IFERROR(D79+E79-G80-F81,0)","v":0}]
[null,"(=) Base para ISR clave 015",null,{"$f":"IFERROR(D79-F81,0)","v":0}]
[]
[null,19,"Horas extra"]
[null,38,"Ajuste en Horas extra Exento"]
[null,39,"Ajuste en Horas extra Gravado"]
[null,"(=) Neto pagado clave 019",null,{"$f":"IFERROR(D85+E85-G86-F87,0)","v":0}]
[null,"(=) Base para ISR clave 019",null,{"$f":"IFERROR(D85-F87,0)","v":0}]
[]
[null,20,"Prima dominical",null,null,null,null,{"$f":"IF(E91>0,HYPERLINK(\"#\"& \"APEND6!E31\",\"Ver apéndice\"),\"\")","v":""}]
[null,40,"Ajuste en Prima dominical Exento"]
[null,41,"Ajuste en Prima dominical Gravado"]
[null,"(=) Neto pagado clave 020",null,{"$f":"IFERROR(D91+E91-G92-F93,0)","v":0}]
[null,"(=) Base para ISR clave 020",null,{"$f":"IFERROR(D91-F93,0)","v":0}]
[]
[null,21,"Prima vacacional",null,null,null,null,{"$f":"IF(E97>0,HYPERLINK(\"#\"& \"APEND6!E32\",\"Ver apéndice\"),\"\")","v":""}]
[null,42,"Ajuste en Prima vacacional Exento"]
[null,43,"Ajuste en Prima vacacional Gravado"]
[null,"(=) Neto pagado clave 021",null,{"$f":"IFERROR(D97+E97-G98-F99,0)","v":0}]
[null,"(=) Base para ISR clave 021",null,{"$f":"IFERROR(D97-F99,0)","v":0}]
[]
[null,24,"Seguro de retiro"]
[null,42,"Ajuste en Prima vacacional Exento"]
[null,43,"Ajuste en Prima vacacional Gravado"]
[null,"(=) Neto pagado clave 024",null,{"$f":"IFERROR(D103+E103-G104-F105,0)","v":0}]
[null,"(=) Base para ISR clave 024",null,{"$f":"IFERROR(D103-F105,0)","v":0}]
[]
[null,26,"Reembolso por funeral"]
[null,51,"Ajuste en Reembolso por funeral Exento"]
[null,"(=) Neto pagado clave 026",null,{"$f":"IFERROR(D109+E109-G110,0)","v":0}]
[null,"(=) Base para ISR clave 026",null,{"$f":"IFERROR(D109,0)","v":0}]
[]
[null,27,"Cuotas de seguridad social pagadas por el patrón",null,null,null,null,{"$f":"IF(D114>0,HYPERLINK(\"#\"& \"APEND6!D35\",\"Ver apéndice\"),\"\")","v":""}]
[null,52,"Ajuste en Cuotas de seguridad social pagadas por el patrón Exento"]
[null,"(=) Neto pagado clave 027",null,{"$f":"IFERROR(D114+E114-G115,0)","v":0}]
[null,"(=) Base para ISR clave 027",null,{"$f":"IFERROR(D114,0)","v":0}]
[]
[null,28,"Comisiones"]
[null,53,"Ajuste en Comisiones Gravado"]
[null,"(=) Neto pagado clave 028",null,{"$f":"IFERROR(D119+E119-F120,0)","v":0}]
[null,"(=) Base para ISR clave 028",null,{"$f":"IFERROR(D119-F120,0)","v":0}]
[]
[null,29,"Vales de despensa"]
[null,54,"Ajuste en Vales de despensa Exento"]
[null,"089","Ajuste en Vales de despensa Gravado"]
[null,"(=) Neto pagado clave 029",null,{"$f":"IFERROR(D124+E124-G125-F126,0)","v":0}]
[null,"(=) Base para ISR clave 029",null,{"$f":"IFERROR(D124-F126,0)","v":0}]
[]
[null,30,"Vales de restaurante"]
[null,55,"Ajuste en Vales de restaurante Exento"]
[null,"090","Ajuste en Vales de restaurante Gravado"]
[null,"(=) Neto pagado clave 030",null,{"$f":"IFERROR(D130+E130-G131-F132,0)","v":0}]
[null,"(=) Base para ISR clave 030",null,{"$f":"IFERROR(D130-F132,0)","v":0}]
[]
[null,31,"Vales de gasolina"]
[null,56,"Ajuste en Vales de gasolina Exento"]
[null,"091","Ajuste en Vales de gasolina Gravado"]
[null,"(=) Neto pagado clave 031",null,{"$f":"IFERROR(D136+E136-G137-F138,0)","v":0}]
[null,"(=) Base para ISR clave 031",null,{"$f":"IFERROR(D136-F138,0)","v":0}]
[]
[null,32,"Vales de ropa"]
[null,57,"Ajuste en Vales de ropa Exento"]
[null,"092","Ajuste en Vales de ropa Gravado"]
[null,"(=) Neto pagado clave 032",null,{"$f":"IFERROR(D142+E142-G143-F144,0)","v":0}]
[null,"(=) Base para ISR clave 032",null,{"$f":"IFERROR(D142-F144,0)","v":0}]
[]
[null,33,"Ayuda para renta"]
[null,58,"Ajuste en Ayuda para renta Exento"]
[null,"093","Ajuste en Ayuda para renta Gravado"]
[null,"(=) Neto pagado clave 033",null,{"$f":"IFERROR(D148+E148-G149-F150,0)","v":0}]
[null,"(=) Base para ISR clave 033",null,{"$f":"IFERROR(D148-F150,0)","v":0}]
[]
[null,34,"Ayuda para artículos escolares"]
[null,59,"Ajuste en Ayuda para artículos escolares Exento"]
[null,"094","Ajuste en Ayuda para artículos escolares Gravado"]
[null,"(=) Neto pagado clave 034",null,{"$f":"IFERROR(D154+E154-G155-F156,0)","v":0}]
[null,"(=) Base para ISR clave 034",null,{"$f":"IFERROR(D154-F156,0)","v":0}]
[]
[null,35,"Ayuda para anteojos"]
[null,60,"Ajuste en Ayuda para anteojos Exento"]
[null,"095","Ajuste en Ayuda para anteojos Gravado"]
[null,"(=) Neto pagado clave 035",null,{"$f":"IFERROR(D160+E160-G161-F162,0)","v":0}]
[null,"(=) Base para ISR clave 035",null,{"$f":"IFERROR(D160-F162,0)","v":0}]
[]
[null,36,"Ayuda para transporte"]
[null,61,"Ajuste en Ayuda para transporte Exento"]
[null,"096","Ajuste en Ayuda para transporte Gravado"]
[null,"(=) Neto pagado clave 036",null,{"$f":"IFERROR(D166+E166-G167-F168,0)","v":0}]
[null,"(=) Base para ISR clave 036",null,{"$f":"IFERROR(D166-F168,0)","v":0}]
[]
[null,37,"Ayuda para gastos de funeral"]
[null,62,"Ajuste en Ayuda para gastos de funeral Exento"]
[null,"097","Ajuste en Ayuda para gastos de funeral Gravado"]
[null,"(=) Neto pagado clave 037",null,{"$f":"IFERROR(D172+E172-G173-F174,0)","v":0}]
[null,"(=) Base para ISR clave 037",null,{"$f":"IFERROR(D172-F174,0)","v":0}]
[]
[null,38,"Otros ingresos por salarios"]
[null,63,"Ajuste en Otros ingresos por salarios Exento"]
[null,64,"Ajuste en Otros ingresos por salarios Gravado"]
[null,"(=) Neto pagado clave 038",null,{"$f":"IFERROR(D178+E178-G179-F180,0)","v":0}]
[null,"(=) Base para ISR clave 038",null,{"$f":"IFERROR(D178-F180,0)","v":0}]
[]
[null," 047","Alimentación diferentes a los establecidos en el Art 94 último párrafo LISR"]
[null,74,"Ajuste en Alimentación Exento"]
[null,75,"Ajuste en Alimentación Gravado"]
[null,"(=) Neto pagado clave 047",null,{"$f":"IFERROR(D184+E184-G185-F186,0)","v":0}]
[null,"(=) Base para ISR clave 047",null,{"$f":"IFERROR(D184-F186,0)","v":0}]
[]
[null,48,"Habitación"]
[null,76,"Ajuste en Habitación Exento"]
[null,77,"Ajuste en Habitación Gravado"]
[null,"(=) Neto pagado clave 048",null,{"$f":"IFERROR(D190+E190-G191-F192,0)","v":0}]
[null,"(=) Base para ISR clave 048",null,{"$f":"IFERROR(D190-F192,0)","v":0}]
[]
[null,49,"Premios por asistencia"]
[null,78,"Ajuste en Premios por asistencia"]
[null,"(=) Neto pagado clave 049",null,{"$f":"IFERROR(D196+E196-F197,0)","v":0}]
[null,"(=) Base para ISR clave 049",null,{"$f":"IFERROR(D196-F197,0)","v":0}]
[]
[null,50,"Viáticos"]
[null,80,"Ajuste en Viáticos gravados"]
[null,100,"Ajuste en Viáticos exentos"]
[null,"(=) Neto pagado clave 050",null,{"$f":"IFERROR(D201+E201-G202-F203,0)","v":0}]
[null,"(=) Base para ISR clave 050",null,{"$f":"IFERROR(D201-F203,0)","v":0}]
[]
[]
[null,null,"Base para ISR"]
[null,null,"Periodicidad de pago para el cálculo"]

{"sheet":"APEND6","index":4,"n_rows":150,"n_cols":8,"rows_kept":150,"cut":false,"hidden":true,"merged":[[100,1,100,4],[100,6,100,7],[3,1,3,7],[4,1,4,7],[5,1,5,7],[6,1,6,7],[7,1,7,7],[14,1,14,4],[14,6,14,7],[51,1,51,2],[87,1,87,7],[89,1,89,4],[89,6,89,7],[98,1,98,7],[138,1,138,4],[138,6,138,7],[145,1,145,2],[111,1,111,2],[120,1,120,7],[122,1,122,4],[122,6,122,7],[127,1,127,2],[136,1,136,4]]}
[]
[]
[]
[null,"Para el TipoRegimen “002-Sueldos”"]
[null,"Para el TipoRegimen “003- Jubilados”, “004-Pensionados” y “012- Jubilados o Pensionados”, específicamente para los casos de Jubilación en una sola exhibición"]
[null,"Para el TipoRegimen “003- Jubilados”, “004-Pensionados” y “012- Jubilados o Pensionados”, específicamente para los casos de Jubilación en parcialidades"]
[null,"Para el TipoRegimen “05-Asimilados Miembros Sociedades Cooperativas Produccion”, “06-Asimilados Integrantes Sociedades Asociaciones Civiles”, “07-Asimilados Miembros consejos”, “08-Asimilados comisionistas”, “09- Asimilados Honorarios”, “10-Asimilados acciones” y “11-Asimilados otros”"]
[null,"Para el TipoRegimen “13- Indemnización o Separación”"]
[]
[]
[]
[]
[null,"Para el TipoRegimen “002-Sueldos”",null,null,"Ir al MENÚ"]
[]
[null,"PERCEPCIONES",null,null,null,null,"DEDUCCIONES"]
[null,"Tipo de percepción","Descripción","Gravado/ Exento","Límite de exentos",null,"Tipo Deducción","Descripción"]
[null,1,"Sueldos, Salarios  Rayas y Jornales","Gravado",null,null,2,"ISR"]
[null,2,"Gratificación Anual (Aguinaldo)","Gravado y Exento","30 UMA's\nArt. 93 fr. XIV de la LISR",null,6,"Descuento por incapacidad"]
[null,3,"Participación de los Trabajadores en las Utilidades PTU","Gravado y Exento","15 UMA's\nArt. 93 fr. XIV de la LISR",null,12,"Anticipo de salarios"]
[null,4,"Reembolso de Gastos Médicos Dentales y Hospitalarios","Gravado y Exento",null,null,20,"Ausencia (Ausentismo)"]
[null,5,"Fondo de Ahorro","Gravado y Exento",null,null,13,"Pagos hechos con exceso al trabajador"]
[null,6,"Caja de ahorro","Gravado y Exento",null,null,20,"Ausencia (Ausentismo)"]
[null,9,"Contribuciones a Cargo del Trabajador Pagadas por el Patrón","Gravado",null,null,24,"Ajuste en Gratificación Anual (Aguinaldo) Exento"]
[null,10,"Premios por puntualidad","Gravado",null,null,25,"Ajuste en Gratificación Anual (Aguinaldo) Gravado"]
[null,11,"Prima de Seguro de vida","Gravado y Exento",null,null,26,"Ajuste en Participación de los Trabajadores en las Utilidades PTU Exento"]
[null,12,"Seguro de Gastos Médicos Mayores","Gravado y Exento",null,null,27,"Ajuste en Participación de los Trabajadores en las Utilidades PTU Gravado"]
[null,13,"Cuotas Sindicales Pagadas por el Patrón","Gravado",null,null,28,"Ajuste en Reembolso de Gastos Médicos Dentales y Hospitalarios Exento"]
[null,14,"Subsidios por incapacidad","Gravado y Exento",null,null,29,"Ajuste en Fondo de ahorro Exento"]
[null,15,"Becas para trabajadores y/o hijos","Gravado y Exento",null,null,30,"Ajuste en Caja de ahorro Exento"]
[null,19,"Horas extra","Gravado y Exento","5 UMA's por cada semana de servicios\nArt. 93 fr. I de la LISR",null,31,"Ajuste en Contribuciones a Cargo del Trabajador Pagadas por el Patrón Exento"]
[null,20,"Prima dominical","Gravado y Exento","1 UMA por cada domingo laborado\nhasta 52 UMA'S\nArt. 93 fr. I de la LISR",null,32,"Ajuste en Premios por puntualidad Gravado"]
[null,21,"Prima vacacional","Gravado y Exento","15 UMA's\nArt. 93 fr. XIV de la LISR",null,33,"Ajuste en Prima de Seguro de vida Exento"]
[null,24,"Seguro de retiro","Gravado y Exento",null,null,34,"Ajuste en Seguro de Gastos Médicos Mayores Exento"]
[null,26,"Reembolso por funeral","Gravado y Exento",null,null,35,"Ajuste en Cuotas Sindicales Pagadas por el Patrón Exento"]
[null,27,"Cuotas de seguridad social pagadas por el patrón","Exento",null,null,36,"Ajuste en Subsidios por incapacidad Exento"]
[null,28,"Comisiones","Gravado",null,null,37,"Ajuste en Becas para trabajadores y/o hijos Exento"]
[null,29,"Vales de despensa","Gravado y Exento",null,null,38,"Ajuste en Horas extra Exento"]
[null,30,"Vales de restaurante","Gravado y Exento",null,null,39,"Ajuste en Horas extra Gravado"]
[null,31,"Vales de gasolina","Gravado y Exento",null,null,40,"Ajuste en Prima dominical Exento"]
[null,32,"Vales de ropa","Gravado y Exento",null,null,41,"Ajuste en Prima dominical Gravado"]
[null,33,"Ayuda para renta","Gravado y Exento",null,null,42,"Ajuste en Prima vacacional Exento"]
[null,34,"Ayuda para artículos escolares","Gravado y Exento",null,null,43,"Ajuste en Prima vacacional Gravado"]
[null,35,"Ayuda para anteojos","Gravado y Exento",null,null,48,"Ajuste en Seguro de retiro Exento"]
[null,36,"Ayuda para transporte","Gravado y Exento",null,null,51,"Ajuste en Reembolso por funeral Exento"]
[null,37,"Ayuda para gastos de funeral","Gravado y Exento",null,null,52,"Ajuste en Cuotas de seguridad social pagadas por el patrón Exento"]
[null,38,"Otros ingresos por salarios","Gravado y Exento",null,null,53,"Ajuste en Comisiones Gravado"]
[null," 047","Alimentación diferentes a los establecidos en el Art 94 último párrafo LISR","Gravado y Exento",null,null,54,"Ajuste en Vales de despensa Exento"]
[null,48,"Habitación","Gravado y Exento",null,null,55,"Ajuste en Vales de restaurante Exento"]
[null,49,"Premios por asistencia","Gravado",null,null,56,"Ajuste en Vales de gasolina Exento"]
[null,50,"Viáticos","Gravado y Exento",null,null,57,"Ajuste en Vales de ropa Exento"]
[null,null,null,null,null,null,58,"Ajuste en Ayuda para renta Exento"]
[null,"OTROS PAGOS",null,null,null,null,59,"Ajuste en Ayuda para artículos escolares Exento"]
[null,"Tipo","Descripción",null,null,null,60,"Ajuste en Ayuda para anteojos Exento"]
[null,1,"Reintegro de ISR pagado en exceso (siempre que no haya sido enterado al SAT).",null,null,null,61,"Ajuste en Ayuda para transporte Exento"]
[null,2,"Subsidio para el empleo (efectivamente entregado al trabajador).",null,null,null,62,"Ajuste en Ayuda para gastos de funeral Exento"]
[null,4,"Aplicación de saldo a favor por compensación anual.",null,null,null,63,"Ajuste en Otros ingresos por salarios Exento"]
[null,5,"Reintegro de ISR retenido en exceso de ejercicio anterior (siempre que no haya sido enterado al SAT).",null,null,null,64,"Ajuste en Otros ingresos por salarios Gravado"]
[null,6,"Alimentos en bienes (Servicios de comedor y comida) Art 94 último párrafo LISR.",null,null,null,71,"Ajuste en Subsidio para el empleo (efectivamente entregado al trabajador)"]
[null,7,"ISR ajustado por subsidio.",null,null,null,74,"Ajuste en Alimentación Exento"]
[null,8,"Subsidio efectivamente entregado que no correspondía (Aplica sólo cuando haya ajuste al cierre de mes en relación con el Apéndice 7 de la guía de llenado de nómina).",null,null,null,75,"Ajuste en Alimentación Gravado"]
[null,null,null,null,null,null,76,"Ajuste en Habitación Exento"]
[null,null,null,null,null,null,77,"Ajuste en Habitación Gravado"]
[null,null,null,null,null,null,78,"Ajuste en Premios por asistencia"]
[null,null,null,null,null,null,80,"Ajuste en Viáticos gravados"]
[null,null,null,null,null,null,82,"Ajuste en Fondo de ahorro Gravado"]
[null,null,null,null,null,null,83,"Ajuste en Caja de ahorro Gravado"]
[null,null,null,null,null,null,84,"Ajuste en Prima de Seguro de vida Gravado"]
[null,null,null,null,null,null,85,"Ajuste en Seguro de Gastos Médicos Mayores Gravado"]
[null,null,null,null,null,null,86,"Ajuste en Subsidios por incapacidad Gravado"]
[null,null,null,null,null,null,87,"Ajuste en Becas para trabajadores y/o hijos Gravado"]
[null,null,null,null,null,null,88,"Ajuste en Seguro de retiro Gravado"]
[null,null,null,null,null,null,89,"Ajuste en Vales de despensa Gravado"]
[null,null,null,null,null,null,90,"Ajuste en Vales de restaurante Gravado"]
[null,null,null,null,null,null,91,"Ajuste en Vales de gasolina Gravado"]
[null,null,null,null,null,null,92,"Ajuste en Vales de ropa Gravado"]
[null,null,null,null,null,null,93,"Ajuste en Ayuda para renta Gravado"]
[null,null,null,null,null,null,94,"Ajuste en Ayuda para artículos escolares Gravado"]
[null,null,null,null,null,null,95,"Ajuste en Ayuda para anteojos Gravado"]
[null,null,null,null,null,null,96,"Ajuste en Ayuda para transporte Gravado"]
[null,null,null,null,null,null,97,"Ajuste en Ayuda para gastos de funeral Gravado"]
[null,null,null,null,null,null,99,"Ajuste a ingresos por sueldos y salarios gravados"]
[null,null,null,null,null,null,100,"Ajuste en Viáticos exentos"]
[null,null,null,null,null,null,101,"ISR Retenido de ejercicio anterior"]
[null,null,null,null,null,null,107,"Ajuste al Subsidio Causado "]
[]
[]
[]
[null,"Para el TipoRegimen “003- Jubilados”, “004-Pensionados” y “012- Jubilados o Pensionados”, específicamente para los casos de Jubilación en una sola exhibición"]
[]
[null,"PERCEPCIONES",null,null,null,null,"DEDUCCIONES"]
[null,"Tipo de percepción","Descripción","Gravado/ Exento","Límite de exentos",null,"Tipo Deducción","Descripción"]
[null,39,"Jubilaciones, pensiones o haberes de retiro","Gravado y Exento","90 UMA's elavadas al año\nArt. 171 RLISR",null,2,"ISR"]
[null,53,"Pagos que se realicen a extrabajadores que obtengan una jubilación en una sola exhibición derivados de la ejecución de resoluciones judicial o de un laudo","Gravado y Exento",null,null,65,"Ajuste en Jubilaciones, pensiones o haberes de retiro en una sola exhibición Exento "]
[null,null,null,null,null,null,66,"Ajuste en Jubilaciones, pensiones o haberes de retiro en una sola exhibición Gravado"]
[null,null,null,null,null,null,101,"ISR Retenido de ejercicio anterior"]
[null,null,null,null,null,null,105,"Ajuste a pagos que se realicen a extrabajadores que obtengan una jubilación en una sola exhibición derivados de la ejecución de una resolución judicial o de un laudo gravados"]
[null,null,null,null,null,null,106,"Ajuste a pagos que se realicen a extrabajadores que obtengan una jubilación en una sola exhibición derivados de la ejecución de una resolución judicial o de un laudo exentos"]
[]
[null,"Para el TipoRegimen “003- Jubilados”, “004-Pensionados” y “012- Jubilados o Pensionados”, específicamente para los casos de Jubilación en parcialidades"]
[]
[null,"PERCEPCIONES",null,null,null,null,"DEDUCCIONES"]
[null,"Tipo de percepción","Descripción","Gravado/ Exento","Límite de exentos",null,"Tipo Deducción","Descripción"]
[null,44,"Jubilaciones, pensiones o haberes de retiro en parcialidades","Gravado y Exento","90 UMA's por año de servicio\nArt. 93 fracción XIII LISR",null,2,"ISR"]
[null,51,"Pagos por gratificaciones, primas, compensaciones, recompensas u otros a extrabajadores derivados de jubilación en parcialidades","Gravado","N/A",null,69,"Ajuste en Jubilaciones, pensiones o haberes de retiro en parcialidades Exento"]
[null,52,"Pagos que se realicen a extrabajadores que obtengan una jubilación en parcialidades derivados de la ejecución de resoluciones judicial o de un laudo","Gravado y Exento",null,null,70,"Ajuste en Jubilaciones, pensiones o haberes de retiro en parcialidades Gravado"]
[null,null,null,null,null,null,101,"ISR Retenido de ejercicio anterior"]
[null,null,null,null,null,null,102,"Ajuste a pagos por gratificaciones, primas, compensaciones, recompensas u otros a extrabajadores derivados de jubilación en parcialidades, gravados"]
[null,null,null,null,null,null,103,"Ajuste a pagos que se realicen a extrabajadores que obtengan una jubilación en parcialidades derivados de la ejecución de una resolución judicial o de un laudo gravados"]
[null,null,null,null,null,null,104,"Ajuste a pagos que se realicen a extrabajadores que obtengan una jubilación en parcialidades derivados de la ejecución de una resolución judicial o de un laudo exentos"]
[]
[]
[null,"OTROS PAGOS"]
[null,"Tipo","Descripción"]
[null,1,"Reintegro de ISR pagado en exceso (siempre que no haya sido enterado al SAT)."]
[null,4,"Aplicación de saldo a favor por compensación anual."]
[null,5,"Reintegro de ISR retenido en exceso de ejercicio anterior (siempre que no haya sido enterado al SAT)."]
[]
[]
[]
[]
[null,"Para el TipoRegimen “05-Asimilados Miembros Sociedades Cooperativas Produccion”, “06-Asimilados Integrantes Sociedades Asociaciones Civiles”, “07-Asimilados Miembros consejos”, “08-Asimilados comisionistas”, “09- Asimilados Honorarios”, “10-Asimilados acciones” y “11-Asimilados otros”"]
[]
[null,"PERCEPCIONES",null,null,null,null,"DEDUCCIONES"]
[null,"Tipo de percepción","Descripción","Gravado/ Exento","Límite de exentos",null,"Tipo Deducción","Descripción"]
[null,45,"Ingresos en acciones o títulos valor que representan bienes","Gravado","N/A",null,2,"ISR"]
[null," 046","Ingresos asimilados a salarios","Gravado","N/A",null,73,"Ajuste en Ingresos en acciones o títulos valor que representan bienes Gravado"]
[null,null,null,null,null,null,98,"Ajuste a ingresos asimilados a salarios gravados"]
[null,"OTROS PAGOS",null,null,null,null,101,"ISR Retenido de ejercicio anterior"]
[null,"Tipo","Descripción"]
[null,1,"Reintegro de ISR pagado en exceso (siempre que no haya sido enterado al SAT)."]
[null,4,"Aplicación de saldo a favor por compensación anual."]
[null,5,"Reintegro de ISR retenido en exceso de ejercicio anterior (siempre que no haya sido enterado al SAT)."]
[]
[]
[]
[]
[null,"Para el TipoRegimen “13- Indemnización o Separación”"]
[]
[null,"PERCEPCIONES",null,null,null,null,"DEDUCCIONES"]
[null,"Tipo de percepción","Descripción","Gravado/ Exento","Límite de exentos",null,"Tipo Deducción","Descripción"]
[null,22,"Prima por antigüedad","Gravado y Exento","90 UMA's por año de servicio\nArt. 93, fracción Xlll",null,2,"ISR"]
[null,23,"Pagos por separación","Gravado y Exento","90 UMA's por año de servicio\nArt. 93, fracción Xlll",null,44,"Ajuste en Prima por antigüedad Exento"]
[null,25,"Indemnizaciones","Gravado y Exento","90 UMA's por año de servicio\nArt. 93, fracción Xlll",null,45,"Ajuste en Prima por antigüedad Gravado"]
[null,null,null,null,null,null,46,"Ajuste en Pagos por separación Exento"]
[null,null,null,null,null,null,47,"Ajuste en Pagos por separación Gravado"]
[null,"OTROS PAGOS",null,null,null,null,49,"Ajuste en Indemnizaciones Exento"]
[null,"Tipo","Descripción",null,null,null,50,"Ajuste en Indemnizaciones Gravado"]
[null,1,"Reintegro de ISR pagado en exceso (siempre que no haya sido enterado al SAT).",null,null,null,67,"Ajuste en Pagos por separación Acumulable"]
[null,4,"Aplicación de saldo a favor por compensación anual.",null,null,null,101,"ISR Retenido de ejercicio anterior"]
[null,5,"Reintegro de ISR retenido en exceso de ejercicio anterior (siempre que no haya sido enterado al SAT)."]

{"sheet":"ANALISIS","index":5,"n_rows":73,"n_cols":7,"rows_kept":73,"cut":false,"hidden":true,"merged":[[22,6,23,6],[27,1,27,4],[34,3,34,4],[34,1,34,2],[7,1,7,4],[3,1,3,4],[4,1,4,4],[5,1,5,4],[6,1,6,4],[18,1,18,4],[9,1,9,4],[61,1,61,2],[14,1,14,4],[20,1,20,2],[20,3,20,4],[45,1,45,4],[43,1,43,4],[56,1,56,4],[58,1,58,4],[40,1,40,2],[40,3,40,4],[24,1,24,4]]}
[]
[null,null,null,null,"Ir al MENÚ"]
[]
[null,"Artículo 5 A LSS. Para los efectos de esta Ley, se entiende por:\nV. \tTrabajadores o trabajador: la persona física que la Ley Federal del Trabajo define como tal;\nVI. \tTrabajador permanente: aquél que tenga una relación de trabajo por tiempo indeterminado;\nVII. \tTrabajador eventual: aquél que tenga una relación de trabajo para obra determinada o por tiempo determinado en los términos de la Ley Federal del Trabajo"]
[null,"Artículo 8o LFT.- Trabajador es la persona física que presta a otra, física o moral, un trabajo personal subordinado.\n\nPara los efectos de esta disposición, se entiende por trabajo toda actividad humana, intelectual o material, independientemente del grado de preparación técnica requerido por cada profesión u oficio."]
[null,"Artículo 5 A LSS. Para los efectos de esta Ley, se entiende por:\nXVIII. \tSalarios o salario: la retribución que la Ley Federal del Trabajo define como tal"]
[null,"Artículo 82 LFT.- Salario es la retribución que debe pagar el patrón al trabajador por su trabajo."]
[null,"Artículo 27 LSS. El salario base de cotización se integra con los pagos hechos en efectivo por cuota diaria, gratificaciones, percepciones, alimentación, habitación, primas, comisiones, prestaciones en especie y cualquiera otra cantidad o prestación que se entregue al trabajador por su trabajo. Se excluyen como integrantes del salario base de cotización, dada su naturaleza, los siguientes conceptos:"]
[]
[null,"Artículo 30 LSS. Para determinar el salario diario base de cotización se estará a lo siguiente:\n\nI. Cuando además de los elementos fijos del salario el trabajador percibiera regularmente otras retribuciones periódicas de cuantía previamente conocida, éstas se sumarán a dichos elementos fijos"]
[]
[]
[null,"Para el TipoRegimen “002-Sueldos”"]
[]
[null,"PERCEPCIONES"]
[null,"Tipo de percepción","Descripción","Gravado/ Exento","Límite de exentos","¿Elemento?","¿Integra al Salario Base de Cotización?"]
[null,1,"Sueldos, Salarios  Rayas y Jornales","Gravado",null,"Fijo","Sí , Fundamento: Artículo 27 primer párrafo LSS"]
[null,2,"Gratificación Anual (Aguinaldo)","Gravado y Exento","30 UMA's\nArt. 93 fr. XIV de la LISR","Fijo","Sí , Fundamento: Artículo 27 primer párrafo LSS"]
[null,"Artículo 87 LFT.- Los trabajadores tendrán derecho a un aguinaldo anual que deberá pagarse antes del día veinte de diciembre, equivalente a quince días de salario, por lo menos.\n\nLos que no hayan cumplido el año de servicios, independientemente de que se encuentren laborando o no en la fecha de liquidación del aguinaldo, tendrán derecho a que se les pague la parte proporcional del mismo, conforme al tiempo que hubieren trabajado, cualquiera que fuere éste."]
[null,3,"Participación de los Trabajadores en las Utilidades PTU","Gravado y Exento","15 UMA's\nArt. 93 fr. XIV de la LISR","Variable","No (con límites) , Fundamento: Artículo 27 fracción IV LSS"]
[null,"Artículo 117 LFT.- Los trabajadores participarán en las utilidades de las empresas, de conformidad con el porcentaje que determine la Comisión Nacional para la Participación de los Trabajadores en las Utilidades de las Empresas.",null,"Artículo 27 LSS.\nIV.  Las cuotas que en términos de esta Ley le corresponde cubrir al patrón, las aportaciones al Instituto del Fondo Nacional de la Vivienda para los Trabajadores, y las participaciones en las utilidades de la empresa;",null,null,"https://dof.gob.mx/nota_detalle.php?codigo=5694775&fecha=07/07/2023#gsc.tab=0"]
[null,4,"Reembolso de Gastos Médicos Dentales y Hospitalarios","Gravado y Exento",null,"Variable","No , Fundamento: Artículo 27 primer párrafo LSS"]
[null,5,"Fondo de Ahorro","Gravado y Exento",null,"Fijo","No (con límites) , Fundamento: Artículo 27 fracción IV LSS"]
[null,6,"Caja de ahorro","Gravado y Exento",null,"Fijo"]
[null,"Artículo 27 LSS.\nII.  El ahorro, cuando se integre por un depósito de cantidad semanaria, quincenal o mensual igual del trabajador y de la empresa; si se constituye en forma diversa o puede el trabajador retirarlo más de dos veces al año, integrará salario; tampoco se tomarán en cuenta las cantidades otorgadas por el patrón para fines sociales de carácter sindical."]
[null,9,"Contribuciones a Cargo del Trabajador Pagadas por el Patrón","Gravado",null,"Fijo o variable","Sí , Fundamento: Artículo 27 primer párrafo LSS"]
[null,10,"Premios por puntualidad","Gravado",null,"Variable","No (con límites) , Fundamento: Artículo 27 fracción IV LSS"]
[null,"Artículo 27 LSS.\nVII. \tLos premios por asistencia y puntualidad, siempre que el importe de cada uno de estos conceptos no rebase el diez por ciento del salario base de cotización."]
[null,11,"Prima de Seguro de vida","Gravado y Exento",null,"Variable","No , Fundamento: Artículo 27 primer párrafo LSS"]
[null,12,"Seguro de Gastos Médicos Mayores","Gravado y Exento",null,"Variable","No , Fundamento: Artículo 27 primer párrafo LSS"]
[null,13,"Cuotas Sindicales Pagadas por el Patrón","Gravado",null,"Fijo o variable","Sí , Fundamento: Artículo 27 primer párrafo LSS"]
[null,14,"Subsidios por incapacidad","Gravado y Exento",null,"Variable","No , Fundamento: Artículo 27 primer párrafo LSS"]
[null,15,"Becas para trabajadores y/o hijos","Gravado y Exento",null,"Fijo o variable","No , Fundamento: Artículo 27 primer párrafo LSS"]
[null,19,"Horas extra","Gravado y Exento","5 UMA's por cada semana de servicios\nArt. 93 fr. I de la LISR","Variable","No (con límites) , Fundamento: Artículo 27 fracción IV LSS"]
[null,"Artículo 66 LFT.- Podrá también prolongarse la jornada de trabajo por circunstancias extraordinarias, sin exceder nunca de tres horas diarias ni de tres veces en una semana.",null,"Artículo 27 LSS.\nIX. \tEl tiempo extraordinario dentro de los márgenes señalados en la Ley Federal del Trabajo."]
[null,20,"Prima dominical","Gravado y Exento","1 UMA por cada domingo laborado\nhasta 52 UMA'S\nArt. 93 fr. I de la LISR","Fijo o variable","Sí , Fundamento: Artículo 27 primer párrafo LSS"]
[null,21,"Prima vacacional","Gravado y Exento","15 UMA's\nArt. 93 fr. XIV de la LISR","Fijo","Sí , Fundamento: Artículo 27 primer párrafo LSS"]
[null,24,"Seguro de retiro","Gravado y Exento",null,"Variable","No , Fundamento: Artículo 27 primer párrafo LSS"]
[null,26,"Reembolso por funeral","Gravado y Exento",null,"Variable","No , Fundamento: Artículo 27 primer párrafo LSS"]
[null,27,"Cuotas de seguridad social pagadas por el patrón","Exento",null,"Fijo o variable","Sí , Fundamento: Artículo 27 primer párrafo LSS"]
[null,"Artículo 27 LSS.\nIV. \tLas cuotas que en términos de esta Ley le corresponde cubrir al patrón, las aportaciones al Instituto del Fondo Nacional de la Vivienda para los Trabajadores, y las participaciones en las utilidades de la empresa",null,"Artículo 36 LSS. Corresponde al patrón pagar íntegramente la cuota señalada para los trabajadores, en los casos en que éstos perciban como cuota diaria el salario mínimo"]
[null,28,"Comisiones","Gravado",null,"Variable","Sí , Fundamento: Artículo 27 primer párrafo LSS"]
[null,29,"Vales de despensa","Gravado y Exento",null,"Fijo","No (con límites) , Fundamento: Artículo 27 fracción VI LSS"]
[null,"Artículo 27 LSS.\nVI. \tLas despensas en especie o en dinero, siempre y cuando su importe no rebase el cuarenta por ciento del salario mínimo general diario vigente en el Distrito Federal"]
[null,30,"Vales de restaurante","Gravado y Exento",null,"Fijo","No (con condicionante) , Fundamento: Artículo 27 fracción VI LSS"]
[null,"Artículo 27 LSS.\nV. \tLa alimentación y la habitación cuando se entreguen en forma onerosa a los trabajadores; se entiende que son onerosas estas prestaciones cuando el trabajador pague por cada una de ellas, como mínimo, el veinte por ciento del salario mínimo general diario que rija en el Distrito Federal"]
[null,31,"Vales de gasolina","Gravado y Exento",null,"Fijo o variable","No , Fundamento: Artículo 27 primer párrafo LSS"]
[null,32,"Vales de ropa","Gravado y Exento",null,"Fijo o variable","No , Fundamento: Artículo 27 primer párrafo LSS"]
[null,33,"Ayuda para renta","Gravado y Exento",null,"Variable","No , Fundamento: Artículo 27 primer párrafo LSS"]
[null,34,"Ayuda para artículos escolares","Gravado y Exento",null,"Variable","No , Fundamento: Artículo 27 primer párrafo LSS"]
[null,35,"Ayuda para anteojos","Gravado y Exento",null,"Variable","No , Fundamento: Artículo 27 primer párrafo LSS"]
[null,36,"Ayuda para transporte","Gravado y Exento",null,"Variable","No , Fundamento: Artículo 27 primer párrafo LSS"]
[null,37,"Ayuda para gastos de funeral","Gravado y Exento",null,"Variable","No , Fundamento: Artículo 27 primer párrafo LSS"]
[null,38,"Otros ingresos por salarios","Gravado y Exento",null,"Fijo o variable","Sí o No, depende lo que se pague"]
[null," 047","Alimentación diferentes a los establecidos en el Art 94 último párrafo LISR","Gravado y Exento",null,"Fijo","No (con condicionante) , Fundamento: Artículo 27 fracción VI LSS"]
[null,48,"Habitación","Gravado y Exento",null,"Fijo","No (con condicionante) , Fundamento: Artículo 27 fracción VI LSS"]
[null,"Artículo 27 LSS.\nV. \tLa alimentación y la habitación cuando se entreguen en forma onerosa a los trabajadores; se entiende que son onerosas estas prestaciones cuando el trabajador pague por cada una de ellas, como mínimo, el veinte por ciento del salario mínimo general diario que rija en el Distrito Federal"]
[null,49,"Premios por asistencia","Gravado",null,"Variable","No (con límites) , Fundamento: Artículo 27 fracción IV LSS"]
[null,"Artículo 27 LSS.\nVII. \tLos premios por asistencia y puntualidad, siempre que el importe de cada uno de estos conceptos no rebase el diez por ciento del salario base de cotización."]
[null,50,"Viáticos","Gravado y Exento",null,null,"No , Fundamento: Artículo 27 primer párrafo LSS"]
[]
[null,"OTROS PAGOS"]
[null,"Tipo","Descripción"]
[null,1,"Reintegro de ISR pagado en exceso (siempre que no haya sido enterado al SAT)."]
[null,2,"Subsidio para el empleo (efectivamente entregado al trabajador)."]
[null,4,"Aplicación de saldo a favor por compensación anual."]
[null,5,"Reintegro de ISR retenido en exceso de ejercicio anterior (siempre que no haya sido enterado al SAT)."]
[null,6,"Alimentos en bienes (Servicios de comedor y comida) Art 94 último párrafo LISR."]
[null,7,"ISR ajustado por subsidio."]
[null,8,"Subsidio efectivamente entregado que no correspondía (Aplica sólo cuando haya ajuste al cierre de mes en relación con el Apéndice 7 de la guía de llenado de nómina)."]
[]
[]
[null,"No = Se recomienda consultar con el abogado"]

{"sheet":"FSBC","index":6,"n_rows":91,"n_cols":9,"rows_kept":91,"cut":false,"hidden":true,"merged":[[24,1,24,4],[84,1,84,3],[25,1,25,4],[26,1,26,4],[27,1,27,4],[28,1,28,5],[19,1,19,4],[20,1,20,4],[1,1,1,2],[11,1,11,4],[12,1,12,4],[13,1,13,4],[14,1,14,4],[18,1,18,4],[6,1,6,5],[7,1,7,4],[8,1,8,4],[9,1,9,4],[10,1,10,4]]}
[]
[null,"Solo capture información en las celdas de color verde"]
[]
[]
[null,"Ir al MENÚ",null,null,"Valor de la UMA",108.57]
[null,null,null,null,"Salario diario del trabajador",380]
[null,"Artículo 27 LSS. El salario base de cotización se integra con los pagos hechos en efectivo por cuota diaria, gratificaciones, percepciones, alimentación, habitación, primas, comisiones, prestaciones en especie y cualquiera otra cantidad o prestación que se entregue al trabajador por su trabajo. Se excluyen como integrantes del salario base de cotización, dada su naturaleza, los siguientes conceptos:"]
[null,"I.  Los instrumentos de trabajo tales como herramientas, ropa y otros similares",null,null,null,"https://dof.gob.mx/nota_detalle.php?codigo=5721189&fecha=22/03/2024#gsc.tab=0"]
[null,"II. El ahorro, cuando se integre por un depósito de cantidad semanaria, quincenal o mensual igual del trabajador y de la empresa; si se constituye en forma diversa o puede el trabajador retirarlo más de dos veces al año, integrará salario; tampoco se tomarán en cuenta las cantidades otorgadas por el patrón para fines sociales de carácter sindical."]
[null,"Artículo 93 LISR. No se pagará el impuesto sobre la renta por la obtención de los siguientes ingresos:\nXI. Los provenientes de cajas de ahorro de trabajadores y de fondos de ahorro establecidos por las empresas para sus trabajadores cuando reúnan los requisitos de deducibilidad del Título II de esta Ley o, en su caso, del presente Título.\n\nRequisitos.\nQue sean otorgados en forma general a todos los trabajadores\nEl monto del patrón tiene que ser igual a la aportación de los trabajadores\nNo exceder del 13% del salario del trabajador\nCon un límite del 1.3 veces del valor de la UMA elevada al año\nFundamento: Artículo 27 fracción XI LISR"]
[null,"III. Las aportaciones adicionales que el patrón convenga otorgar a favor de sus trabajadores por concepto de cuotas del seguro de retiro, cesantía en edad avanzada y vejez."]
[null,"IV. Las cuotas que en términos de esta Ley le corresponde cubrir al patrón, las aportaciones al Instituto del Fondo Nacional de la Vivienda para los Trabajadores, y las participaciones en las utilidades de la empresa;",null,null,null,"https://dof.gob.mx/nota_detalle.php?codigo=5694775&fecha=07/07/2023#gsc.tab=0"]
[null,"Artículo 36 LSS. Corresponde al patrón pagar íntegramente la cuota señalada para los trabajadores, en los casos en que éstos perciban como cuota diaria el salario mínimo."]
[null,"Artículo 29 LINFONAVIT.- Son obligaciones de los patrones: \nII.- Determinar el monto de las aportaciones del cinco por ciento sobre el salario de los trabajadores a su servicio y efectuar el pago en las entidades receptoras que actúen por cuenta y orden del \nInstituto, para su abono en la subcuenta de vivienda de las cuentas individuales de los trabajadores previstas en los sistemas de ahorro para el retiro, en los términos de la presente \nLey y sus reglamentos, así como en lo conducente, conforme a lo previsto en la Ley del Seguro Social y en la Ley Federal del Trabajo. En lo que corresponde a la integración y cálculo de la \nbase y límite superior salarial para el pago de aportaciones, se aplicará lo contenido en la Ley del Seguro Social. \n\nEstas aportaciones son gastos de previsión de las empresas y forman parte del patrimonio de los trabajadores.\n......................................"]
[null,"V. La alimentación y la habitación cuando se entreguen en forma onerosa a los trabajadores; se entiende que son onerosas estas prestaciones cuando el trabajador pague por cada una de ellas, como mínimo, el veinte por ciento del salario mínimo general diario que rija en el Distrito Federal",null,null,null,{"$f":"IF(F5<>\"\",\"Se debe de cobrar por lo menos $\"&ROUND(F5*0.2,2),\"\")","v":"Se debe de cobrar por lo menos $21.71"},"https://dof.gob.mx/nota_detalle.php?codigo=5733018&fecha=11/07/2024#gsc.tab=0"]
[null,null,null,null,"¿Cuántos alimentos se le dan al trabajador?",1]
[null,null,null,null,{"$f":"IF(F16<>\"\",\"¿Cuanto paga el trabajador por el alimento?\",\"\")","v":"¿Cuanto paga el trabajador por el alimento?"},20]
[null,null,null,null,{"$f":"IF(AND(F16<>\"\",F17<>\"\"),IF(AND(F16=1,F17<ROUND(F5*0.2,2)),\"Se integra al salario el 8.33% del salario ordinario\",IF(AND(F16=2,F17<ROUND(F5*0.2,2)),\"Se integra al salario el 16.66% del salario ordinario\",IF(AND(F16=3,F17<ROUND(F5*0.2,2)),\"Se integra al salario el 25% del salario ordinario\",\"\"))),\"\")","v":"Se integra al salario el 8.33% del salario ordinario"},{"$f":"IF(AND(F16<>\"\",F17<>\"\"),IF(AND(F16=1,F17<ROUND(F5*0.2,2)),ROUND(F6*8.33%,2),IF(AND(F16=2,F17<ROUND(F5*0.2,2)),ROUND(F6*16.66%,2),IF(AND(F16=3,F17<ROUND(F5*0.2,2)),ROUND(F6*25%,2),\"\"))),\"\")","v":31.65}]
[null,"Artículo 32 LSS. Si además del salario en dinero el trabajador recibe del patrón, sin costo para aquél, habitación o alimentación, se estimará aumentado su salario en un veinticinco por ciento y si recibe ambas prestaciones se aumentará en un cincuenta por ciento.\n\nCuando la alimentación no cubra los tres alimentos, sino uno o dos de éstos, por cada uno de ellos se adicionará el salario en un ocho punto treinta y tres por ciento."]
[null,"Artículo 344 LFT.- Las disposiciones de este capítulo se aplican a los trabajadores en hoteles, casas de asistencia, restaurantes, fondas, cafés, bares y otros establecimientos análogos.\n\nArtículo 348 LFT.- La alimentación que se proporcione a los trabajadores deberá ser sana, abundante y nutritiva."]
[null,"VI. Las despensas en especie o en dinero, siempre y cuando su importe no rebase el cuarenta por ciento del salario mínimo general diario vigente en el Distrito Federal",null,null,null,{"$f":"IF(F5<>\"\",\"El importe máximo es de $\"&ROUND(F5*0.4,2),\"\")","v":"El importe máximo es de $43.43"}]
[null,null,null,null,"¿Importe diario que se le entrega al trabajador?",50]
[null,null,null,null,{"$f":"IF(F22<>\"\",\"Parte que integra\",\"\")","v":"Parte que integra"},{"$f":"IFERROR(IF(F22<>\"\",IF(AND(F22<>\"\",F22>ROUND(F5*0.4,2)),F22-ROUND(F5*0.4,2),0),\"\"),\"\")","v":6.57}]
[null,null,null,null,{"$f":"IF(F22<>\"\",\"Parte que no integra\",\"\")","v":"Parte que no integra"},{"$f":"IFERROR(IF(F22<>\"\",IF(F22>=ROUND(F5*0.4,2),ROUND(F5*0.4,2),F22),\"\"),\"\")","v":43.43}]
[null,"VII. Los premios por asistencia y puntualidad, siempre que el importe de cada uno de estos conceptos no rebase el diez por ciento del salario base de cotización",null,null,null,"https://dof.gob.mx/nota_detalle.php?codigo=5744811&fecha=10/12/2024#gsc.tab=0"]
[null,"VIII. Las cantidades aportadas para fines sociales, considerándose como tales las entregadas para constituir fondos de algún plan de pensiones establecido por el patrón o derivado de contratación colectiva. Los planes de pensiones serán sólo los que reúnan los requisitos que establezca la Comisión Nacional del Sistema de Ahorro para el Retiro, y",null,null,null,"https://dof.gob.mx/nota_detalle.php?codigo=5691515&fecha=08/06/2023#gsc.tab=0"]
[null,"IX. El tiempo extraordinario dentro de los márgenes señalados en la Ley Federal del Trabajo."]
[null,"Artículo 66 LFT.- Podrá también prolongarse la jornada de trabajo por circunstancias extraordinarias, sin exceder nunca de tres horas diarias ni de tres veces en una semana."]
[null,"Para que los conceptos mencionados en este precepto se excluyan como integrantes del salario base de cotización, deberán estar debidamente registrados en la contabilidad del patrón.\n\nEn los conceptos previstos en las fracciones VI, VII y IX cuando el importe de estas prestaciones rebase el porcentaje establecido, solamente se integrarán los excedentes al salario base de cotización."]
[]
[null,"Determinación del salario base de cotización"]
[]
[null,"Fecha de ingreso"]
[null,"Fecha de cálculo"]
[null,"Salario diario del trabajador"]
[null,"Zona del salario mínimo"]
[null,"Salario mínimo",{"$f":"IFERROR(VLOOKUP(C36,GENERALES1!B21:C22,2,FALSE),\"\")","v":""}]
[null,"Mes de la UMA"]
[null,"Valor de la UMA",{"$f":"IFERROR(VLOOKUP(C38,GENERALES1!B25:C26,2,FALSE),\"\")","v":""}]
[null,"¿Días de aguinaldo que se otorgan?"]
[null,"% de la prima vacacional"]
[null,"¿Cuántos alimentos se le dan al trabajador?",null,{"$f":"IF(C42<>\"\",\"¿Cuánto se cobra al trabajador?\",\"\")","v":""},null,{"$f":"IFERROR(IF(C42<>\"\",IF(E42<($C$39*0.2),\"Parte que integra\",\"\"),\"\"),\"\")","v":""},{"$f":"IFERROR(IF(F42<>\"\",IF(C42=1,ROUND(C35*8.33%,IF(C42=2,ROUND(C35*16.66%,2),ROUND(C35*25%,2))),\"\"),\"\"),\"\")","v":""}]
[null,"¿Se otorga habitación al trabajador?",null,{"$f":"IF(C43=\"Sí\",\"¿Cuánto se cobra al trabajador?\",\"\")","v":""},null,{"$f":"IFERROR(IF(C43<>\"\",IF(E43<($C$39*0.2),\"Parte que integra\",\"\"),\"\"),\"\")","v":""},{"$f":"IFERROR(IF(F43<>\"\",ROUND(C35*25%,2),\"\"),\"\")","v":""}]
[null,"¿% que aporta el patrón al fondo de ahorro?",null,{"$f":"IF(C44<>\"\",\"¿% que aporta el trabajador?\",\"\")","v":""},null,{"$f":"IF(C44<>E44,\"Parte que integra\",\"\")","v":""},{"$f":"IFERROR(IF(F44<>\"\",ROUND((C35*C44)-(C35*E44),2),\"\"),\"\")","v":""}]
[null,"¿Se otorga despensa al trabajador?",null,{"$f":"IF(C45<>\"\",\"¿Cuánto se le entrega?\",\"\")","v":""},null,{"$f":"IF(C45<>E45,\"Parte que integra\",\"\")","v":""},{"$f":"IFERROR(IF(F45<>\"\",IF(E45>=(C39*0.4),ROUND(E45-(C39*0.4),2),0),\"\"),\"\")","v":""}]
[null,"¿Labora todos los domingos del año?",null,{"$f":"IF(C46=\"Sí\",\"¿% de la prima dominical?\",\"\")","v":""}]
[]
[null,"Determinación del factor de integración"]
[null,"Aguinaldo",null,{"$f":"IFERROR(ROUND(C50/C51,4),\"\")","v":""}]
[null,"Días de aguinaldo que se otorgan",{"$f":"IFERROR(IF(C40<>\"\",C40,\"\"),\"\")","v":""}]
[null,"(/) Días del año",{"$f":"IF(C50<>\"\",365,\"\")","v":""}]
[null,"(+) Prima vacacional",null,{"$f":"IFERROR(ROUND(C53/C54*C55,4),\"\")","v":""}]
[null,"Días de vacaciones que le corresponden",{"$f":"IFERROR(IF(AND(C33<>\"\",C34<>\"\"),VLOOKUP(VALUE(DATEDIF(C33,C34,\"y\")&\".\"&DATEDIF(C33,C34,\"ym\")&DATEDIF(C33,C34,\"md\")),TABLAV,3),\"\"),\"\")","v":""}]
[null,"(/) Días del año",{"$f":"IF(C53<>\"\",365,\"\")","v":""}]
[null,"(x) % de la prima vacacional",{"$f":"IFERROR(IF(C41<>\"\",C41,\"\"),\"\")","v":""}]
[null,"(+) Prima dominical (en su caso)",null,{"$f":"IFERROR(ROUND(C57/C58*C59,4),\"\")","v":""}]
[null,"Domingos del año",{"$f":"IFERROR(IF(C46=\"Sí\",52,\"\"),\"\")","v":""}]
[null,"(/) Días del año",{"$f":"IFERROR(IF(C46=\"Sí\",365,\"\"),\"\")","v":""}]
[null,"(x) % de la prima dominical",{"$f":"IFERROR(IF(C46=\"Sí\",E46,\"\"),\"\")","v":""}]
[null,"(+) La unidad",null,{"$f":"IF(AND(C50<>\"\",C53<>\"\"),1,\"\")","v":""}]
[null,"(=) Factor de integración",null,{"$f":"IFERROR(IF(D49<>\"\",SUMIF(D49:D60,\">0\"),\"\"),\"\")","v":""}]
[]
[null,"Determinación del salario base de cotización"]
[null,"Salario diario",null,{"$f":"IFERROR(IF(C35<>\"\",C35,\"\"),\"\")","v":""}]
[null,"(x) Factor de integración",null,{"$f":"IFERROR(IF(D61<>\"\",D61,\"\"),\"\")","v":""}]
[null,"(=) Resultado",null,{"$f":"IFERROR(ROUND(D64*D65,2),\"\")","v":""}]
[null,"(+) Alimentación",null,{"$f":"IF(G41<>\"\",G41,\"\")","v":""}]
[null,"(+) Habitación",null,{"$f":"IF(G42<>\"\",G42,\"\")","v":""}]
[null,"(+) Fondo de ahorro",null,{"$f":"IF(G43<>\"\",G43,\"\")","v":""}]
[null,"(+) Despensa",null,{"$f":"IF(G44<>\"\",G44,\"\")","v":""}]
[null,"(=) Salario base de cotización en partes fijas",null,{"$f":"SUMIF(D65:D70,\">0\")","v":0}]
[]
[]
[null,"Determinación de las partes variables"]
[null,"Días devengados del bimestre"]
[]
[null,null,"Importe 1er. Mes","Importe 2° mes","Total","Importe x día del bimestre","Límite máximo","Parte que no integra","Parte que integra"]
[null,"Premio de puntualidad",null,null,{"$f":"IF(OR(C78<>\"\",D78<>\"\"),SUM(C78:D78),\"\")","v":""},{"$f":"IFERROR(ROUND(E78/C75,2),\"\")","v":""},{"$f":"IFERROR(IF(E78<>\"\",ROUND(D72*0.1,2),\"\"),\"\")","v":""},{"$f":"IF(F78<>\"\",IF(F78>=G78,G78,F78),\"\")","v":""},{"$f":"IF(F78<>\"\",IF(F78>G78,F78-G78,0),\"\")","v":""}]
[null,"Premio de asistencia",null,null,{"$f":"IF(OR(C79<>\"\",D79<>\"\"),SUM(C79:D79),\"\")","v":""},{"$f":"IFERROR(ROUND(E79/C76,2),\"\")","v":""},{"$f":"IFERROR(IF(E79<>\"\",ROUND(D72*0.1,2),\"\"),\"\")","v":""},{"$f":"IF(F79<>\"\",IF(F79>=G79,G79,F79),\"\")","v":""},{"$f":"IF(F79<>\"\",IF(F79>G79,F79-G79,0),\"\")","v":""}]
[null,"Bonos",null,null,{"$f":"IF(OR(C80<>\"\",D80<>\"\"),SUM(C80:D80),\"\")","v":""},{"$f":"IFERROR(ROUND(E80/C77,2),\"\")","v":""}]
[null,"Tiempo extra triple",null,null,{"$f":"IF(OR(C81<>\"\",D81<>\"\"),SUM(C81:D81),\"\")","v":""},{"$f":"IFERROR(ROUND(E81/C78,2),\"\")","v":""}]
[null,"Otros",null,null,{"$f":"IF(OR(C82<>\"\",D82<>\"\"),SUM(C82:D82),\"\")","v":""},{"$f":"IFERROR(ROUND(E82/C79,2),\"\")","v":""}]
[null,null,null,null,"Total partes variables",{"$f":"SUMIF(F78:F82,\">0\")","v":0}]
[]
[null,"Artículo 28 LSS. Los asegurados se inscribirán con el salario base de cotización que perciban en el momento de su afiliación, estableciéndose como límite superior el equivalente a veinticinco veces el salario mínimo general que rija en el Distrito Federal y como límite inferior el salario mínimo general del área geográfica respectiva."]
[]
[null,"Importe en partes fijas",{"$f":"IFERROR(IF(D71<>\"\",D71,\"\"),\"\")","v":0}]
[null,"(+) Importe en partes variables",{"$f":"IFERROR(IF(AND(F83<>\"\",F83>0),F83,\"\"),\"\")","v":""}]
[null,"(=) Total",{"$f":"IF(C87<>\"\",SUMIF(C87:C88,\">0\"),\"\")","v":0}]
[]
[null,"Salario base de cotización",{"$f":"IFERROR(IF(C89<ROUND(C37*D61,2),ROUND(C37*D61,2),IF(C89>ROUND(C39*25,2),ROUND(C39*25,2),C89)),\"\")","v":""}]

{"sheet":"RIMSS","index":7,"n_rows":43,"n_cols":10,"rows_kept":43,"cut":false,"hidden":true,"merged":[[12,1,13,1],[12,3,12,4],[12,8,13,8],[13,3,13,4],[6,3,6,4],[7,8,10,8],[9,3,9,4],[10,3,10,4],[11,3,11,4],[14,3,14,4],[16,1,16,4],[18,1,18,6],[37,1,37,2],[40,1,40,3]]}
[]
[]
[null,"Capture información en las celdas de color verde",null,null,"Ir al MENÚ"]
[]
[]
[null,"Seguro y concepto","Prestaciones","Cuota Patrón","Tasa Patrón","Cuota Trabajador","Total","Base salarial","Fundamento legal"]
[null,"Riesgos de Trabajo","En especie y dinero","Conforme con su siniestralidad laboral",null,0,"Prima correspondiente","Salario base de cotización (SBC)","Artículo 40, 70, 73 LSS y 24 RMACERF "]
[null,"Enfermedades y Maternidad","En especie","Cuota fija por cada colaborador hasta por tres Salarios Mínimos General Vigente (SMGV) en el DF",0.20399999999999999,0,0.20399999999999999,"UMA","Artículo 105, 106 Y 107 LSS"]
[null,"Enfermedades y Maternidad","En especie","Cuota adicional por la diferencia del SBC y de tres veces el valor de la UMA",1.0999999999999999E-2,4.0000000000000001E-3,1.4999999999999999E-2,"Diferencia entre el SBC y tres UMAS"]
[null,"Enfermedades y Maternidad","En dinero",7.0000000000000001E-3,null,2.5000000000000001E-3,9.4999999999999998E-3,"SBC"]
[null,"Enfermedades y Maternidad","Gastos médicos para pensionados y beneficiarios",1.0500000000000001E-2,null,3.7499999999999999E-3,1.43E-2,"SBC"]
[null,"Invalidez y Vida ","En especie y dinero ",1.7500000000000002E-2,null,6.3E-3,2.3800000000000002E-2,"SBC ","Artículo 112, 146 y 147 LSS"]
[null,"Retiro, Cesantía en Edad Avanzada y Vejez (CEAV) ","Retiro ",0.02,null,0,0.02,"SBC ","Artículo 152, 167 y 168 LSS"]
[null,null,"CEAV ","3.15% *",null,1.125E-2,4.2799999999999998E-2,"SBC "]
[null,"Guarderías y Prestaciones Sociales ","En especie ",0.01,null,0,0.01,"SBC ","Artículo 201, 211 y 212 LSS"]
[]
[null,"* Cambia a partir del ejercicio de 2023"]
[]
[null,"Artículo 38 LSS. El patrón al efectuar el pago de salarios a sus trabajadores, deberá retener las cuotas que a éstos les corresponde cubrir.\n\nCuando no lo haga en tiempo oportuno, sólo podrá descontar al trabajador cuatro cotizaciones semanales acumuladas, quedando las restantes a su cargo.\n\nEl patrón tendrá el carácter de retenedor de las cuotas que descuente a sus trabajadores y deberá determinar y enterar al Instituto las cuotas obrero patronales, en los términos establecidos por esta Ley y sus reglamentos."]
[]
[]
[null,"Fecha inicial de cálculo"]
[null,"Fecha final de cálculo"]
[null,"Salario diario del trabajador"]
[null,"Zona del salario mínimo"]
[null,"Salario mínimo",{"$f":"IFERROR(VLOOKUP(C25,GENERALES1!B21:C22,2,FALSE),\"\")","v":""}]
[null,"Mes de la UMA"]
[null,"Valor de la UMA",{"$f":"IFERROR(VLOOKUP(C27,GENERALES1!B25:C26,2,FALSE),\"\")","v":""}]
[null,"¿Días de aguinaldo que se otorgan?"]
[null,"% de la prima vacacional"]
[null,"Días del periodo a calcular"]
[]
[null,"Seguro y concepto",null,"Salario Base de Cotización","(-) 3 umas","(=) Excedente 3 umas","(x) Cuota obrera","(=) Cuota diaria","(x) días del periodo","(=) Cuota obrera "]
[null,"Enfermedades y Maternidad",null,{"$f":"IFERROR(ROUND($C$24*(1+($C$29/365)+(VLOOKUP(VALUE(DATEDIF($C$22,$C$23,\"Y\")&\".\"&DATEDIF($C$22,$C$23,\"YM\")&DATEDIF($C$22,$C$23,\"MD\")),TABLAV,3)/365*$C$30)),2),\"\")","v":0},{"$f":"IFERROR(C28*3,0)","v":0},{"$f":"IFERROR(IF(D34>=E34,D34-E34,0),0)","v":0},{"$f":"F9","v":4.0000000000000001E-3},{"$f":"IFERROR(ROUND(F34*G34,2),0)","v":0},{"$f":"IFERROR($C$31,\"\")","v":0},{"$f":"IFERROR(ROUND(H34*I34,2),0)","v":0}]
[null,"Enfermedades y Maternidad",null,{"$f":"IFERROR(ROUND($C$24*(1+($C$29/365)+(VLOOKUP(VALUE(DATEDIF($C$22,$C$23,\"Y\")&\".\"&DATEDIF($C$22,$C$23,\"YM\")&DATEDIF($C$22,$C$23,\"MD\")),TABLAV,3)/365*$C$30)),2),\"\")","v":0},null,null,{"$f":"F10","v":2.5000000000000001E-3},{"$f":"IFERROR(ROUND(D35*G35,2),0)","v":0},{"$f":"IFERROR($C$31,\"\")","v":0},{"$f":"IFERROR(ROUND(H35*I35,2),0)","v":0}]
[null,"Enfermedades y Maternidad",null,{"$f":"IFERROR(ROUND($C$24*(1+($C$29/365)+(VLOOKUP(VALUE(DATEDIF($C$22,$C$23,\"Y\")&\".\"&DATEDIF($C$22,$C$23,\"YM\")&DATEDIF($C$22,$C$23,\"MD\")),TABLAV,3)/365*$C$30)),2),\"\")","v":0},null,null,{"$f":"F11","v":3.7499999999999999E-3},{"$f":"IFERROR(ROUND(D36*G36,2),0)","v":0},{"$f":"IFERROR($C$31,\"\")","v":0},{"$f":"IFERROR(ROUND(H36*I36,2),0)","v":0}]
[null,"Invalidez y Vida ",null,{"$f":"IFERROR(ROUND($C$24*(1+($C$29/365)+(VLOOKUP(VALUE(DATEDIF($C$22,$C$23,\"Y\")&\".\"&DATEDIF($C$22,$C$23,\"YM\")&DATEDIF($C$22,$C$23,\"MD\")),TABLAV,3)/365*$C$30)),2),\"\")","v":0},null,null,{"$f":"F12","v":6.3E-3},{"$f":"IFERROR(ROUND(D37*G37,2),0)","v":0},{"$f":"IFERROR($C$31,\"\")","v":0},{"$f":"IFERROR(ROUND(H37*I37,2),0)","v":0}]
[null,"Cesantía en Edad Avanzada y Vejez (CEAV) ",null,{"$f":"IFERROR(ROUND($C$24*(1+($C$29/365)+(VLOOKUP(VALUE(DATEDIF($C$22,$C$23,\"Y\")&\".\"&DATEDIF($C$22,$C$23,\"YM\")&DATEDIF($C$22,$C$23,\"MD\")),TABLAV,3)/365*$C$30)),2),\"\")","v":0},null,null,{"$f":"F14","v":1.125E-2},{"$f":"IFERROR(ROUND(D38*G38,2),0)","v":0},{"$f":"IFERROR($C$31,\"\")","v":0},{"$f":"IFERROR(ROUND(H38*I38,2),0)","v":0}]
[null,null,null,null,null,null,null,null,"Total",{"$f":"SUM(J34:J38)","v":0}]
[]
[null,"Artículo 36 LSS. Corresponde al patrón pagar íntegramente la cuota señalada para los trabajadores, en los casos en que éstos perciban como cuota diaria el salario mínimo."]
[]
[null,"Importe a retener",{"$f":"IFERROR(IF(C24>C26,J39,0),\"\")","v":0}]

{"sheet":"RISR_IMSS","index":8,"n_rows":95,"n_cols":10,"rows_kept":95,"cut":false,"hidden":true,"merged":[[14,1,14,4],[51,1,51,2],[1,1,1,2],[61,1,61,6]]}
[]
[null,"Capture información en las celdas de color verde"]
[]
[null,"Año de cálculo"]
[null,"Mes de cálculo",null,null,null,null,"Ir al MENÚ"]
[null,"Periodicidad de pago"]
[null,"Salario diario"]
[null,"Salario base de cotización"]
[null,"Zona del salario mínimo"]
[null,"Salario mínimo",{"$f":"IFERROR(VLOOKUP(C9,GENERALES1!$B$21:$C$22,2,FALSE),\"\")","v":""}]
[null,"Mes de la UMA"]
[null,"Valor de la UMA",{"$f":"IFERROR(VLOOKUP(C11,GENERALES1!$B$25:$C$26,2,FALSE),\"\")","v":""}]
[]
[]
[null,"V. Tarifa aplicable durante 2025 para el cálculo de los pagos provisionales mensuales a que se refieren los artículos 96 de la Ley del ISR y 175 de su Reglamento, así como la regla 3.12.2."]
[null,"Límite inferior","Límite superior","Cuota fija","Por ciento para aplicarse sobre el excedente del límite inferior"]
[null,"$","$","$","%"]
["①",0.01,{"$f":"IFERROR(IF($C$6<>\"\",IF($C$6<30,ROUND(TARIFA!C9/30.4*$C$6,2),TARIFA!C9),\"\"),\"\")","v":""},{"$f":"IFERROR(IF($C$6<>\"\",IF($C$6<30,ROUND(TARIFA!D9/30.4*$C$6,2),TARIFA!D9),\"\"),\"\")","v":""},1.92]
["①",{"$f":"IFERROR(C18+0.01,\"\")","v":""},{"$f":"IFERROR(IF($C$6<>\"\",IF($C$6<30,ROUND(TARIFA!C10/30.4*$C$6,2),TARIFA!C10),\"\"),\"\")","v":""},{"$f":"IFERROR(IF($C$6<>\"\",IF($C$6<30,ROUND(TARIFA!D10/30.4*$C$6,2),TARIFA!D10),\"\"),\"\")","v":""},6.4]
["①",{"$f":"IFERROR(C19+0.01,\"\")","v":""},{"$f":"IFERROR(IF($C$6<>\"\",IF($C$6<30,ROUND(TARIFA!C11/30.4*$C$6,2),TARIFA!C11),\"\"),\"\")","v":""},{"$f":"IFERROR(IF($C$6<>\"\",IF($C$6<30,ROUND(TARIFA!D11/30.4*$C$6,2),TARIFA!D11),\"\"),\"\")","v":""},10.88]
["①","",{"$f":"IFERROR(IF($C$6<>\"\",IF($C$6<30,ROUND(TARIFA!C12/30.4*$C$6,2),TARIFA!C12),\"\"),\"\")","v":""},{"$f":"IFERROR(IF($C$6<>\"\",IF($C$6<30,ROUND(TARIFA!D12/30.4*$C$6,2),TARIFA!D12),\"\"),\"\")","v":""},16]
["①","",{"$f":"IFERROR(IF($C$6<>\"\",IF($C$6<30,ROUND(TARIFA!C13/30.4*$C$6,2),TARIFA!C13),\"\"),\"\")","v":""},{"$f":"IFERROR(IF($C$6<>\"\",IF($C$6<30,ROUND(TARIFA!D13/30.4*$C$6,2),TARIFA!D13),\"\"),\"\")","v":""},17.920000000000002]
["①","",{"$f":"IFERROR(IF($C$6<>\"\",IF($C$6<30,ROUND(TARIFA!C14/30.4*$C$6,2),TARIFA!C14),\"\"),\"\")","v":""},{"$f":"IFERROR(IF($C$6<>\"\",IF($C$6<30,ROUND(TARIFA!D14/30.4*$C$6,2),TARIFA!D14),\"\"),\"\")","v":""},21.36]
["①","",{"$f":"IFERROR(IF($C$6<>\"\",IF($C$6<30,ROUND(TARIFA!C15/30.4*$C$6,2),TARIFA!C15),\"\"),\"\")","v":""},{"$f":"IFERROR(IF($C$6<>\"\",IF($C$6<30,ROUND(TARIFA!D15/30.4*$C$6,2),TARIFA!D15),\"\"),\"\")","v":""},23.52]
["①","",{"$f":"IFERROR(IF($C$6<>\"\",IF($C$6<30,ROUND(TARIFA!C16/30.4*$C$6,2),TARIFA!C16),\"\"),\"\")","v":""},{"$f":"IFERROR(IF($C$6<>\"\",IF($C$6<30,ROUND(TARIFA!D16/30.4*$C$6,2),TARIFA!D16),\"\"),\"\")","v":""},30]
["①","",{"$f":"IFERROR(IF($C$6<>\"\",IF($C$6<30,ROUND(TARIFA!C17/30.4*$C$6,2),TARIFA!C17),\"\"),\"\")","v":""},{"$f":"IFERROR(IF($C$6<>\"\",IF($C$6<30,ROUND(TARIFA!D17/30.4*$C$6,2),TARIFA!D17),\"\"),\"\")","v":""},32]
["①","",{"$f":"IFERROR(IF($C$6<>\"\",IF($C$6<30,ROUND(TARIFA!C18/30.4*$C$6,2),TARIFA!C18),\"\"),\"\")","v":""},{"$f":"IFERROR(IF($C$6<>\"\",IF($C$6<30,ROUND(TARIFA!D18/30.4*$C$6,2),TARIFA!D18),\"\"),\"\")","v":""},34]
["①","",{"$f":"TARIFA!C19","v":"En adelante"},{"$f":"IFERROR(IF($C$6<>\"\",IF($C$6<30,ROUND(TARIFA!D19/30.4*$C$6,2),TARIFA!D19),\"\"),\"\")","v":""},35]
[]
[null,"Salario del periodo",null,{"$f":"IFERROR(IF(C7<>\"\",ROUND(C7*C6,2),0.01),\"\")","v":0.01}]
[null,"(+) Otros ingresos"]
[null,"(-) Deducciones"]
[null,"(=) Salario base para ISR",null,{"$f":"IFERROR(ROUND(D30+D31-D32,2),\"\")","v":0.01}]
[null,"Salario acumulado para subsidio al empleo (en su caso)"]
[]
[null,null,"Salario base para ISR",{"$f":"IFERROR(IF(D33>0,D33,\"\"),\"\")","v":0.01},null,null,{"$f":"IF($D$36<>\"\",\"Determinación del subsidio al empleo\",\"\")","v":"Determinación del subsidio al empleo"}]
[null,null,"(-) Límite inferior",{"$f":"IFERROR(VLOOKUP(D36,$B$18:$E$28,1),\"\")","v":0.01},"①",null,{"$f":"IF($D$36<>\"\",\"Valor de la UMA mensual\",\"\")","v":"Valor de la UMA mensual"},{"$f":"IF(G37<>\"\",IF(C5=\"Enero\",GENERALES1!C28,GENERALES1!C29),\"\")","v":3439.46}]
[null,null,"(=) Excedente límite inferior",{"$f":"IFERROR(D36-D37,\"\")","v":0},null,null,{"$f":"IF($D$36<>\"\",\"% de subsidio\",\"\")","v":"% de subsidio"},{"$f":"IF(C5=\"Enero\",TARIFA!E27,TARIFA!D24)","v":0.13800000000000001}]
[null,null,"(x) % excedente límite inferior",{"$f":"IFERROR(VLOOKUP(D36,$B$18:$E$28,4),\"\")","v":1.92},"①",null,{"$f":"IF($D$36<>\"\",\"Valor mensual del subsidio\",\"\")","v":"Valor mensual del subsidio"},{"$f":"IF(G39<>\"\",ROUND(H37*H38,2),\"\")","v":474.65}]
[null,null,"(=) Impuesto marginal",{"$f":"IFERROR(ROUND(D38*D39%,2),\"\")","v":0},null,null,{"$f":"IF(AND($D$36<>\"\",$C$6<30),\"(/) 30.4\",\"\")","v":"(/) 30.4"},{"$f":"IF(G40<>\"\",30.4,\"\")","v":30.4}]
[null,null,"(+) Cuota fija",{"$f":"IFERROR(VLOOKUP(D36,$B$18:$E$28,3),\"\")","v":""},"①",null,{"$f":"IF(AND($D$36<>\"\",$C$6<30),\"(x) Periodo de pago\",\"\")","v":"(x) Periodo de pago"},{"$f":"IF(G41<>\"\",C6,\"\")","v":0}]
[null,null,"(=) ISR causado",{"$f":"IFERROR(D40+D41,\"\")","v":""},null,null,{"$f":"IF(AND($D$36<>\"\",$C$6<30),\"(=) Subsidio al empleo del periodo\",\"\")","v":"(=) Subsidio al empleo del periodo"},{"$f":"IF(G42<>\"\",ROUND(H39/H40*H41,2),\"\")","v":0}]
[null,null,"(-) Subsidio al empleo causado",{"$f":"IFERROR(IF((D33+D34)<=GENERALES1!$C$30,IF($C$6<30,IF(D42>=H42,H42,D42),IF(D42>=H39,H39,D42)),0),\"\")","v":0}]
[null,null,"(=) ISR a retener",{"$f":"IFERROR(D42-D43,\"\")","v":""}]
[]
[]
[null,"Seguro y concepto","Prestaciones","Salario Base de Cotización","(-) 3 umas","(=) Excedente 3 umas","(x) Cuota obrera","(=) Cuota diaria","(x) días del periodo","(=) Cuota obrera "]
[null,"Enfermedades y Maternidad","En especie",{"$f":"IF(C8<>\"\",$C$8,\"\")","v":""},{"$f":"IFERROR($C$12*3,0)","v":0},{"$f":"IFERROR(IF(D48>=E48,D48-E48,0),0)","v":0},{"$f":"RIMSS!G34","v":4.0000000000000001E-3},{"$f":"IFERROR(ROUND(F48*G48,2),0)","v":0},{"$f":"$C$6","v":0},{"$f":"IFERROR(ROUND(H48*I48,2),0)","v":0}]
[null,"Enfermedades y Maternidad","En dinero",{"$f":"IF(C9<>\"\",$C$8,\"\")","v":""},null,null,{"$f":"RIMSS!G35","v":2.5000000000000001E-3},{"$f":"IFERROR(ROUND(D49*G49,2),0)","v":0},{"$f":"$C$6","v":0},{"$f":"IFERROR(ROUND(H49*I49,2),0)","v":0}]
[null,"Enfermedades y Maternidad","Gastos médicos para pensionados y beneficiarios",{"$f":"IF(C10<>\"\",$C$8,\"\")","v":""},null,null,{"$f":"RIMSS!G36","v":3.7499999999999999E-3},{"$f":"IFERROR(ROUND(D50*G50,2),0)","v":0},{"$f":"$C$6","v":0},{"$f":"IFERROR(ROUND(H50*I50,2),0)","v":0}]
[null,"Invalidez y Vida ","En especie y dinero ",{"$f":"IF(C11<>\"\",$C$8,\"\")","v":""},null,null,{"$f":"RIMSS!G37","v":6.3E-3},{"$f":"IFERROR(ROUND(D51*G51,2),0)","v":0},{"$f":"$C$6","v":0},{"$f":"IFERROR(ROUND(H51*I51,2),0)","v":0}]
[null,"Cesantía en Edad Avanzada y Vejez (CEAV) ",null,{"$f":"IF(C12<>\"\",$C$8,\"\")","v":""},null,null,{"$f":"RIMSS!G38","v":1.125E-2},{"$f":"IFERROR(ROUND(D52*G52,2),0)","v":0},{"$f":"$C$6","v":0},{"$f":"IFERROR(ROUND(H52*I52,2),0)","v":0}]
[null,null,null,null,null,null,null,null,"Total",{"$f":"SUM(J48:J52)","v":0}]
[]
[null,"Ingreso base para ISR",{"$f":"IFERROR(IF(D36<>\"\",D36,\"\"),\"\")","v":0.01}]
[null,"(-) Retención de ISR",{"$f":"IF(C7>C10,D44,\"\")","v":""}]
[null,"(-) Retención de IMSS",{"$f":"IF(C7>C10,J53,\"\")","v":""}]
[null,"(=) Neto",{"$f":"IFERROR(C55-SUMIF(C56:C57,\">0\"),\"\")","v":0.01}]
[]
[]
[]
[null,"Las personas que hagan pagos por los conceptos a que se refiere el artículo 95 de esta Ley, efectuarán la retención aplicando al ingreso total por este concepto, una tasa que se calculará dividiendo el impuesto correspondiente al último sueldo mensual ordinario, entre dicho sueldo; el cociente obtenido se multiplicará por cien y el producto se expresará en por ciento. Cuando los pagos por estos conceptos sean inferiores al último sueldo mensual ordinario, la retención se calculará aplicándoles la tarifa establecida en este artículo.\nFundamento: Artículo 96 sexto párrafo LISR"]
[]
[null,"Retención de ISR por pagos por separación"]
[null,"Fecha de ingreso"]
[null,"Fecha de cálculo"]
[null,"Salario diario"]
[null,"Salario diario integrado"]
[null,"Zona del salario mínimo"]
[null,"Salario mínimo",{"$f":"IFERROR(VLOOKUP(C69,GENERALES1!$B$21:$C$22,2,FALSE),\"\")","v":""}]
[null,"Valor de la UMA",{"$f":"IFERROR(IF(C66<>\"\",IF(MONTH(C66)=1,GENERALES1!C25,GENERALES1!C26),\"\"),\"\")","v":""}]
[null,"Antigüedad para LFT",{"$f":"IFERROR(DATEDIF(C65,C66,\"Y\"),\"\")","v":0}]
[null,"Antigüedad para ISR",{"$f":"IFERROR(IF(AND(C65<>\"\",C66<>\"\"),IF(VALUE(DATEDIF(C65,C66,\"YM\")&DATEDIF(C65,C66,\"MD\"))>6,DATEDIF(C65,C66,\"Y\")+1,DATEDIF(C65,C66,\"Y\")),\"\"),\"\")","v":""}]
[null,"Último sueldo mensual ordinario",{"$f":"IFERROR(IF(C67<>\"\",C67,\"\"),\"\")","v":""}]
[]
[null,null,"Calcular los siguiente conceptos"]
[null,null,"Prima de antigüedad",null,{"$f":"IFERROR(IF(D77=\"Sí\",ROUND(12*C72*IF(C67>=(C70*2),ROUND(C70,2),C67),2),\"\"),\"\")","v":""}]
[null,null,"3 meses",null,{"$f":"IFERROR(IF(D78=\"Sí\",ROUND(90*C68,2),\"\"),\"\")","v":""}]
[null,null,"20 días por año",null,{"$f":"IFERROR(IF(D79=\"Sí\",ROUND(20*C72*C68,2),\"\"),\"\")","v":""}]
[null,null,null,"Total pagos",{"$f":"SUMIF(E77:E79,\">0\")","v":0}]
[null,null,null,"(-) Ingreso exento",{"$f":"IFERROR(IF(E80>=ROUND(C71*90*C73,2),ROUND(C71*90*C73,2),E80),\"\")","v":""}]
[null,null,null,"(=) Ingreso acumulable",{"$f":"IFERROR(E80-E81,\"\")","v":""}]
[null,null,null,"(-) Último sueldo mensual ordinario",{"$f":"IFERROR(IF(OR(D77<>\"\",D78<>\"\",D79<>\"\"),ROUND(C67*30,2),\"\"),\"\")","v":""}]
[null,null,null,"(=) Ingreso no acumulable",{"$f":"IFERROR(IF(E82>=E83,E82-E83,0),\"\")","v":""}]
[]
[null,"Determinación de la retención de ISR"]
[null,{"$f":"IF(E82>=E83,\"Último sueldo mensual ordinario\",\"Ingreso acumulable\")","v":"Último sueldo mensual ordinario"},{"$f":"IF(E82>=E83,E83,E82)","v":""}]
[null,{"$f":"IF(E82>E83,\"Determinación de la tasa de ISR\",\"ISR a retener\")","v":"ISR a retener"},{"$f":"IFERROR(IF(E82<E83,ROUND(((E82-VLOOKUP(E82,TARIFA!$B$9:$E$19,1))*VLOOKUP(E82,TARIFA!$B$9:$E$19,4)%)+VLOOKUP(E82,TARIFA!$B$9:$E$19,3),2),\"\"),0)","v":""}]
[null,{"$f":"IF(E82>E83,\"ISR último sueldo mensual ordinario\",\"\")","v":""},{"$f":"IFERROR(IF(E82>E83,ROUND(((E83-VLOOKUP(E83,TARIFA!$B$9:$E$19,1))*VLOOKUP(E83,TARIFA!$B$9:$E$19,4)%)+VLOOKUP(E83,TARIFA!$B$9:$E$19,3),2),\"\"),\"\")","v":""}]
[null,{"$f":"IF(E82>E83,\"(/) Último sueldo mensual ordinario\",\"\")","v":""},{"$f":"IF(B90<>\"\",E83,\"\")","v":""}]
[null,{"$f":"IF(E82>E83,\"(=) Tasa de ISR\",\"\")","v":""},{"$f":"IFERROR(IF(B91<>\"\",ROUND(C89/C90,4),\"\"),\"\")","v":""}]
[]
[null,{"$f":"IF(E82>E83,\"Ingreso acumulable\",\"\")","v":""},{"$f":"IF(B93<>\"\",E82,\"\")","v":""}]
[null,{"$f":"IF(E82>E83,\"(x) Tasa de ISR\",\"\")","v":""},{"$f":"IF(B94<>\"\",C91,\"\")","v":""}]
[null,{"$f":"IF(E82>E83,\"(=) ISR a retener\",\"\")","v":""},{"$f":"IFERROR(IF(B95<>\"\",ROUND(C93*C94,2),\"\"),\"\")","v":""}]

{"sheet":"CUOTASIMSS","index":9,"n_rows":16,"n_cols":9,"rows_kept":16,"cut":false,"hidden":true,"merged":[[11,0,12,0],[11,1,12,1],[11,3,11,4],[11,8,12,8],[12,3,12,4],[13,3,13,4],[15,1,15,4],[5,3,5,4],[6,8,9,8],[8,3,8,4],[9,3,9,4],[10,3,10,4]]}
[]
[]
[]
[]
[null,"Seguro y concepto","Prestaciones","Cuota Patrón","Tasa Patrón","Cuota Trabajador","Total","Base salarial","Fundamento legal"]
[null,"Riesgos de Trabajo","En especie y dinero","Conforme con su siniestralidad laboral",null,0,"Prima correspondiente","Salario base de cotización (SBC)","Artículo 40, 70, 73 LSS y 24 RMACERF "]
[null,"Enfermedades y Maternidad","En especie","Cuota fija por cada colaborador hasta por tres Salarios Mínimos General Vigente (SMGV) en el DF",0.20399999999999999,0,0.20399999999999999,"UMA","Artículo 105, 106 Y 107 LSS"]
[null,"Enfermedades y Maternidad","En especie","Cuota adicional por la diferencia del SBC y de tres veces el valor de la UMA",1.0999999999999999E-2,4.0000000000000001E-3,1.4999999999999999E-2,"Diferencia entre el SBC y tres UMAS"]
[null,"Enfermedades y Maternidad","En dinero",7.0000000000000001E-3,null,2.5000000000000001E-3,9.4999999999999998E-3,"SBC"]
[null,"Enfermedades y Maternidad","Gastos médicos para pensionados y beneficiarios",1.0500000000000001E-2,null,3.7499999999999999E-3,1.43E-2,"SBC"]
[null,"Invalidez y Vida ","En especie y dinero ",1.7500000000000002E-2,null,6.3E-3,2.3800000000000002E-2,"SBC ","Artículo 112, 146 y 147 LSS"]
["①","Retiro, Cesantía en Edad Avanzada y Vejez (CEAV) ","Retiro ",0.02,null,0,0.02,"SBC ","Artículo 152, 167 y 168 LSS"]
[null,null,"CEAV ","3.15% *",null,1.125E-2,4.2799999999999998E-2,"SBC "]
[null,"Guarderías y Prestaciones Sociales ","En especie ",0.01,null,0,0.01,"SBC ","Artículo 201, 211 y 212 LSS"]
[]
[null,"* Cambia a partir del ejercicio de 2023 de acuerdo a la tabla siguiente"]

{"sheet":"CYVSS","index":10,"n_rows":81,"n_cols":4,"rows_kept":81,"cut":false,"hidden":true,"merged":[]}
[]
["①"]
[null,"Fecha de cálculo"]
[null,"Zona del salario mínimo"]
[null,"Salario base de cotización"]
[null,"Salario mínimo",{"$f":"IFERROR(VLOOKUP(C4,GENERALES1!$B$21:$C$22,2,FALSE),\"\")","v":""}]
[null,"Valor de la UMA",{"$f":"IFERROR(IF(C3<>\"\",IF(TEXT(C3,\"mmmm\")=\"Enero\",UMAE,UMAF),\"\"),\"\")","v":""}]
[]
[null,"% que le corresponde",0]
[]
[]
[]
[null,"Valor mímino","Valor máximo","% a aplicar"]
[null,{"$f":"IF(AND(C6<>\"\",C7<>\"\"),C6,\"\")","v":""},{"$f":"IF(AND(C6<>\"\",C7<>\"\"),C6,\"\")","v":""},3.15E-2]
[null,{"$f":"IF(AND(C6<>\"\",C7<>\"\"),ROUND(C6*1.01,2),\"\")","v":""},{"$f":"IF(AND(C6<>\"\",C7<>\"\"),ROUND(C7*1.5,2),\"\")","v":""},3.5439999999999999E-2]
[null,{"$f":"IF(AND($C$6<>\"\",$C$7<>\"\"),ROUND($C$7*1.51,2),\"\")","v":""},{"$f":"IF(AND($C$6<>\"\",$C$7<>\"\"),ROUND($C$7*2,2),\"\")","v":""},4.4260000000000001E-2]
[null,{"$f":"IF(AND($C$6<>\"\",$C$7<>\"\"),ROUND($C$7*2.01,2),\"\")","v":""},{"$f":"IF(AND($C$6<>\"\",$C$7<>\"\"),ROUND($C$7*2.5,2),\"\")","v":""},4.9540000000000001E-2]
[null,{"$f":"IF(AND($C$6<>\"\",$C$7<>\"\"),ROUND($C$7*2.51,2),\"\")","v":""},{"$f":"IF(AND($C$6<>\"\",$C$7<>\"\"),ROUND($C$7*3,2),\"\")","v":""},5.3069999999999999E-2]
[null,{"$f":"IF(AND($C$6<>\"\",$C$7<>\"\"),ROUND($C$7*3.01,2),\"\")","v":""},{"$f":"IF(AND($C$6<>\"\",$C$7<>\"\"),ROUND($C$7*3.5,2),\"\")","v":""},5.5590000000000001E-2]
[null,{"$f":"IF(AND($C$6<>\"\",$C$7<>\"\"),ROUND($C$7*3.51,2),\"\")","v":""},{"$f":"IF(AND($C$6<>\"\",$C$7<>\"\"),ROUND($C$7*4,2),\"\")","v":""},5.747E-2]
[null,{"$f":"IF(AND($C$6<>\"\",$C$7<>\"\"),ROUND($C$7*4.01,2),\"\")","v":""},99999999,6.4219999999999999E-2]
[]
[]
[]
[]
[]
[]
[]
[]
[]
[]
[]
[]
[]
[]
[]
[]
[]
[]
[]
[]
[]
[]
[]
[]
[]
[]
[]
[]
[]
[]
[]
[]
[]
[]
[]
[]
[]
[]
[]
[]
[]
[]
[]
[]
[]
[]
[]
[]
[]
[]
[]
[]
[]
[]
[]
[]
[]
[]
[]
[null,"https://www.internet2.scjn.gob.mx/red2/comunicados/noticia.asp?id=7154 "]

{"sheet":"IMSS","index":11,"n_rows":132,"n_cols":5,"rows_kept":132,"cut":false,"hidden":true,"merged":[]}
[]
[null,"Determinación de las cuotas obrero patronales IMSS"]
[]
[null,"Año de cálculo"]
[null,"Salario base de cotización"]
[null,"Mes a cotizar"]
[null,"Bimestre",null,"AL"]
[null,"Faltas del periodo"]
[null,"Incapacidad del periodo"]
[null,"Prima de riesgo de trabajo"]
[null,"Valor de la UMA"]
[null,"Zona del salario mínimo"]
[null,"Salario mínimo",{"$f":"IFERROR(VLOOKUP(C12,GENERALES1!$B$21:$C$22,2,FALSE),\"\")","v":""}]
[]
[null,"Cuota patronal"]
[null,"Riesgo de trabajo"]
[null,"Salario base de cotización"]
[null,"(x) Prima de riesgo de trabajo"]
[null,"(=) Prima correspondiente"]
[null,"(x) Días a cotizar - faltas - incapacidad"]
[null,"(=) Cuota x riesgo de trabajo"]
[]
[]
[null,"Cuota patronal"]
[null,"Enfermedad y maternidad cuota fija"]
[null,"Valor de la UMA"]
[null,"(X) Cuota patrón"]
[null,"(=) Cuota diaria"]
[null,"(x) Días a cotizar - incapacidad"]
[null,"(=) Cuota patronal"]
[]
[null,"Cuota patronal",null,null,"Cuota obrera"]
[null,"Enfermedad y maternidad excedente 3 veces el valor de la UMA",null,null,"Enfermedad y maternidad excedente 3 veces el salario valor de la UMA"]
[null,"Salario Base de Cotización",null,null,"Salario Base de Cotización"]
[null,"(-) 3 umas",null,null,"(-) 3 umas"]
[null,"(=) Excedente 3 umas",null,null,"(=) Excedente 3 umas"]
[null,"(x) Cuota patronal",null,null,"(x) Cuota obrera"]
[null,"(=) Cuota diaria",null,null,"(=) Cuota diaria"]
[null,"(x) Días a cotizar - incapacidad",null,null,"(x) Días a cotizar - incapacidad"]
[null,"(=) Cuota patronal excedente",null,null,"(=) Cuota obrera excedente"]
[]
[null,"Cuota patronal",null,null,"Cuota obrera"]
[null,"Enfermedad y maternidad prestaciones en dinero",null,null,"Enfermedad y maternidad prestaciones en dinero"]
[null,"Salario base de cotización",null,null,"Salario base de cotización"]
[null,"(x) Cuota patronal",null,null,"(x) Cuota patronal"]
[null,"(=) Prima correspondiente",null,null,"(=) Prima correspondiente"]
[null,"(x) Días a cotizar - incapacidad",null,null,"(x) Días a cotizar - incapacidad"]
[null,"(=) Cuota patronal",null,null,"(=) Cuota obrera"]
[]
[null,"Cuota patronal",null,null,"Cuota obrera"]
[null,"Enfermedad y maternidad pensionados",null,null,"Enfermedad y maternidad pensionados"]
[null,"Salario base de cotización",null,null,"Salario base de cotización"]
[null,"(x) Cuota patronal",null,null,"(x) Cuota patronal"]
[null,"(=) Prima correspondiente",null,null,"(=) Prima correspondiente"]
[null,"(x) Días a cotizar - incapacidad",null,null,"(x) Días a cotizar - incapacidad"]
[null,"(=) Cuota patronal",null,null,"(=) Cuota obrera"]
[]
[null,"Cuota patronal",null,null,"Cuota obrera"]
[null,"Invalidez y vida",null,null,"Invalidez y vida"]
[null,"Salario base de cotización",null,null,"Salario base de cotización"]
[null,"(x) Cuota patronal",null,null,"(x) Cuota patronal"]
[null,"(=) Prima correspondiente",null,null,"(=) Prima correspondiente"]
[null,"(x) Días a cotizar - incapacidad - faltas",null,null,"(x) Días a cotizar - incapacidad - faltas"]
[null,"(=) Cuota patronal",null,null,"(=) Cuota obrera"]
[]
[]
[null,"Cuota patronal"]
[null,"Guarderia"]
[null,"Salario base de cotización"]
[null,"(x) Cuota patronal"]
[null,"(=) Prima correspondiente"]
[null,"(x) Días a cotizar - incapacidad - faltas"]
[null,"(=) Cuota patronal"]
[]
[]
[]
[null,"Resumen mensual"]
[null,null,"Patronal","Obrera","Suma"]
[null,"Importe total"]
[null,"Cuota fija"]
[null,"Excedente"]
[null,"Prestaciones en dinero"]
[null,"Gastos medicos pensionados art. 25"]
[null,"Riesgo de trabajo"]
[null,"Invalidez y vida"]
[null,"Guarderias y prestaciones sociales"]
[]
[]
[null,"Periodo bimestral"]
[]
[null,"Cuota patronal"]
[null,"Retiro"]
[null,"Salario base de cotización"]
[null,"(x) Cuota patronal"]
[null,"(=) Prima correspondiente"]
[null,"(x) Días a cotizar - faltas"]
[null,"(=) Cuota patronal"]
[]
[]
[null,"Cuota patronal",null,null,"Cuota obrera"]
[null,"Cesantia en edad avanzada y vejez",null,null,"Cesantia en edad avanzada y vejez"]
[null,"Salario base de cotización",null,null,"Salario base de cotización"]
[null,"(x) Cuota patronal",null,null,"(x) Cuota patronal"]
[null,"(=) Prima correspondiente",null,null,"(=) Prima correspondiente"]
[null,"(x) Días a cotizar - incapacidad - faltas",null,null,"(x) Días a cotizar - incapacidad - faltas"]
[null,"(=) Cuota patronal",null,null,"(=) Cuota obrera"]
[]
[null,"Valor mímino","Valor máximo","% a aplicar"]
[null,{"$f":"IF(AND($C$11<>\"\",$C$13<>\"\"),C13,\"\")","v":""},{"$f":"IF(AND($C$11<>\"\",$C$13<>\"\"),C13,\"\")","v":""},3.15E-2]
[null,{"$f":"IF(AND(C11<>\"\",C13<>\"\"),ROUND(C13*1.01,2),\"\")","v":""},{"$f":"IF(AND($C$11<>\"\",$C$13<>\"\"),ROUND($C$11*1.5,2),\"\")","v":""},3.5439999999999999E-2]
[null,{"$f":"IF(AND($C$11<>\"\",$C$13<>\"\"),ROUND($C$11*1.51,2),\"\")","v":""},{"$f":"IF(AND($C$11<>\"\",$C$13<>\"\"),ROUND($C$11*2,2),\"\")","v":""},4.4260000000000001E-2]
[null,{"$f":"IF(AND($C$11<>\"\",$C$13<>\"\"),ROUND($C$11*2.01,2),\"\")","v":""},{"$f":"IF(AND($C$11<>\"\",$C$13<>\"\"),ROUND($C$11*2.5,2),\"\")","v":""},4.9540000000000001E-2]
[null,{"$f":"IF(AND($C$11<>\"\",$C$13<>\"\"),ROUND($C$11*2.51,2),\"\")","v":""},{"$f":"IF(AND($C$11<>\"\",$C$13<>\"\"),ROUND($C$11*3,2),\"\")","v":""},5.3069999999999999E-2]
[null,{"$f":"IF(AND($C$11<>\"\",$C$13<>\"\"),ROUND($C$11*3.01,2),\"\")","v":""},{"$f":"IF(AND($C$11<>\"\",$C$13<>\"\"),ROUND($C$11*3.5,2),\"\")","v":""},5.5590000000000001E-2]
[null,{"$f":"IF(AND($C$11<>\"\",$C$13<>\"\"),ROUND($C$11*3.51,2),\"\")","v":""},{"$f":"IF(AND($C$11<>\"\",$C$13<>\"\"),ROUND($C$11*4,2),\"\")","v":""},5.747E-2]
[null,{"$f":"IF(AND($C$11<>\"\",$C$13<>\"\"),ROUND($C$11*4.01,2),\"\")","v":""},99999999,6.4219999999999999E-2]
[]
[]
[null,"Aportación INFONAVIT"]
[null,"Salario base de aportación"]
[null,"(x) Cuota de aportación"]
[null,"(=) Prima correspondiente"]
[null,"(x) Días a cotizar - faltas (hasta 7 días)"]
[null,"(=) Cuota patronal"]
[]
[]
[null,"Resumen periodo bimestral"]
[null,null,"Patronal","Obrera","Suma"]
[null,"Importe total"]
[null,"Retiro"]
[null,"Cesantía en Edad Avanzada y Vejez"]
[null,"Aportación INFONAVIT"]

{"sheet":"EMISIONM","index":12,"n_rows":8,"n_cols":20,"rows_kept":8,"cut":false,"hidden":true,"merged":[[5,9,5,10],[5,11,5,12],[5,13,5,14],[5,16,5,17]]}
[]
[null,"Determinación de las cuotas obrero patronales mensuales"]
[null,null,"Año de cálculo "]
[null,null,"Mes "]
[null,null,"Valor de la UMA ",null,null,null,null,null,"Ir al MENÚ"]
[null,null,"Prima de riesgo ",null,null,null,null,null,null,"Enfermedad y maternidad excedente 3 veces el valor de la UMA",null,"Enfermedad y maternidad prestaciones en dinero",null,"Enfermedad y maternidad gastos médicos pensionados",null,null,"Invalidez y vida"]
[null,null,null,null,null,null,null,null,0.20399999999999999,1.0999999999999999E-2,4.0000000000000001E-3,7.0000000000000001E-3,2.5000000000000001E-3,1.0500000000000001E-2,3.7499999999999999E-3,null,1.7500000000000002E-2,6.2500000000000003E-3,0.01]
[null,"NSS","Nombre","Días del mes","Faltas","Incapacidades","Salario diario (opcional)","Salario base de cotización","Cuota Fija","Excedente Patronal","Excedente Obrero","Prestaciones en Dinero Patronal","Prestaciones en Dinero Obrero","Gastos Médicos y Pensionados Patronal","Gastos Médicos y Pensionados Obrero","Riesgos de Trabajo","Invalidez y Vida Patronal","Invalidez y Vida Obrero","Guarderías y Prestaciones Sociales","Total"]

{"sheet":"EMISIONB","index":13,"n_rows":9,"n_cols":19,"rows_kept":9,"cut":false,"hidden":true,"merged":[[6,9,6,10]]}
[]
[null,"Determinación de las cuotas obrero patronales bimestral"]
[null,null,"Año de cálculo "]
[null,null,"Bimestre "]
[null,null,"Salarío mínimo general de la zona ",null,null,null,null,"Ir al MENÚ"]
[null,null,"Valor de la UMA "]
[null,null,null,null,null,null,null,null,null,"Cesantía en Edad Avanzada y Vejez"]
[null,null,null,null,null,null,null,null,0.02,null,1.125E-2,null,0.05]
[null,"NSS","Nombre","Días del bimestre","Faltas","Incapacidades","Salario diario","Salario base de cotización","Retiro","Cesantía en Edad Avanzada y Vejez Patronal","Cesantía en Edad Avanzada y Vejez Obrero","Subtotal RCV","Aportación Patronal INFONAVIT","Tipo de Descuento","Valor de Descuento","Número de Crédito","Amortización","Subtotal Infonavit","Total"]

{"sheet":"RESUMEN IMSS","index":14,"n_rows":23,"n_cols":6,"rows_kept":23,"cut":false,"hidden":true,"merged":[]}
[]
[]
[null,null,null,null,null,"Ir al MENÚ"]
[]
[null,"Resumen Emisión IMSS",null,null,"Resumen Emisión RCV"]
[]
[null,"Periodo Mensual",null,null,"Bimestre"]
[null,"Días",null,null,"Número de acreditados"]
[null,"Total Cotizantes IMSS"]
[null,"Prima de Riesgos de Trabajo",null,null,"Total Aportación Pat. Infonavit"]
[]
[null,"Cuota Fija",null,null,"Aportación Pat. S/C Infonavit"]
[null,"Excedente Patronal",null,null,"Aportación Pat. C/C Infonavit"]
[null,"Excedente Obrero",null,null,"Amortización"]
[null,"Prestaciones en Dinero Patronal",null,null,"Aport. Pat. C/C Det. Infonavit mas Amort."]
[null,"Prestaciones en Dinero Obrero",null,null,"Suma Infonavit"]
[null,"Gastos Médicos y Pensionados Patronal"]
[null,"Gastos Médicos y Pensionados Obrero",null,null,"Retiro"]
[null,"Riesgos de Trabajo",null,null,"Cesantía y vejez Patronal"]
[null,"Invalidez y Vida Patronal",null,null,"Cesantía y vejez Obrero"]
[null,"Invalidez y Vida Obrero",null,null,"Suma RCV"]
[null,"Guarderías y Prestaciones Sociales"]
[null,"Total",null,null,"Total"]

{"sheet":"TARIFA","index":15,"n_rows":207,"n_cols":10,"rows_kept":207,"cut":false,"hidden":true,"merged":[[5,1,5,4]]}
[]
[]
[null,null,"Ir al MENÚ"]
[null,null,null,null,null,null,"Convertir a:",{"$f":"IF(BASES!D209<>\"\",BASES!D209,30)","v":30}]
[]
[null,"V. Tarifa aplicable durante 2025 para el cálculo de los pagos provisionales mensuales a que se refieren los artículos 96 de la Ley del ISR y 175 de su Reglamento, así como la regla 3.12.2."]
[null,"Límite inferior","Límite superior","Cuota fija","Por ciento para aplicarse sobre el excedente del límite inferior",null,"Límite inferior","Límite superior","Cuota fija","Por ciento para aplicarse sobre el excedente del límite inferior"]
[null,"$","$","$","%",null,"$","$","$","%"]
[null,0.01,746.04,0,1.92,null,0.01,{"$f":"IFERROR(IF($H$4<30,ROUND(C9/30.4*$H$4,2),C9),C9)","v":746.04},{"$f":"IFERROR(IF($H$4<30,ROUND(D9/30.4*$H$4,2),D9),D9)","v":0},1.92]
[null,746.05,6332.05,14.32,6.4,null,{"$f":"IFERROR(H9+0.01,H9)","v":746.05},{"$f":"IFERROR(IF($H$4<30,ROUND(C10/30.4*$H$4,2),C10),C10)","v":6332.05},{"$f":"IFERROR(IF($H$4<30,ROUND(D10/30.4*$H$4,2),D10),D10)","v":14.32},6.4]
[null,6332.06,11128.01,371.83,10.88,null,{"$f":"IFERROR(H10+0.01,H10)","v":6332.06},11128.01,371.83,10.88]
[null,11128.02,12935.82,893.63,16,null,11128.02,12935.82,893.63,16]
[null,12935.83,15487.71,1182.8800000000001,17.920000000000002,null,12935.83,15487.71,1182.8800000000001,17.920000000000002]
[null,15487.72,31236.49,1640.18,21.36,null,15487.72,31236.49,1640.18,21.36]
[null,31236.5,49233,5004.12,23.52,null,31236.5,49233,5004.12,23.52]
[null,49233.01,93993.9,9236.89,30,null,49233.01,93993.9,9236.89,30]
[null,93993.91,125325.2,22665.17,32,null,93993.909999999989,125325.2,22665.17,32]
[null,125325.21,375975.61,32691.18,34,null,125325.20999999999,375975.61,32691.18,34]
[null,375975.62,"En adelante",117912.32000000001,35,null,375975.62,"En adelante",117912.32000000001,35]
[]
[]
[]
[null,"Valor de la UMA mensual",null,3300.53]
[null,"% del subsidio al empleo",null,{"$f":"GENERALES1!C31","v":0.13800000000000001}]
[null,"Importe para subsidio",null,{"$f":"GENERALES1!C30","v":10171}]
[]
[null,"% subsidio al empleo Enero",null,null,{"$f":"GENERALES1!C32","v":0.1439}]
[]
[]
[]
[]
[]
[]
[]
[]
[]
[]
[]
[]
[]
[]
[]
[]
[]
[]
[]
[]
[]
[]
[]
[]
[]
[]
[]
[]
[]
[]
[]
[]
[]
[]
[]
[]
[]
[]
[]
[]
[]
[]
[]
[]
[]
[]
[]
[]
[]
[]
[]
[]
[]
[]
[]
[]
[]
[]
[]
[]
[]
[]
[]
[]
[]
[]
[]
[]
[]
[]
[]
[]
[]
[]
[]
[]
[]
[]
[]
[]
[]
[]
[]
[]
[]
[]
[]
[]
[]
[]
[]
[]
[]
[]
[]
[]
[]
[]
[]
[]
[]
[]
[]
[]
[]
[]
[]
[]
[]
[]
[]
[]
[]
[]
[]
[]
[]
[]
[]
[]
[]
[]
[]
[]
[]
[]
[]
[]
[]
[]
[]
[]
[]
[]
[]
[]
[]
[]
[]
[]
[]
[]
[]
[]
[]
[]
[]
[]
[]
[null,1]
[null,2]
[null,3]
[null,4]
[null,5]
[null,6]
[null,7]
[null,8]
[null,9]
[null,10]
[null,11]
[null,12]
[null,13]
[null,14]
[null,15]
[null,16]
[null,17]
[null,18]
[null,19]
[null,20]
[null,21]
[null,22]
[null,23]
[null,24]
[null,25]
[null,26]
[null,27]
[null,28]
[null,29]
[null,30]
[null,31]

{"sheet":"GENERALES1","index":16,"n_rows":46,"n_cols":4,"rows_kept":46,"cut":false,"hidden":true,"merged":[[4,1,4,3],[5,1,5,2],[19,1,19,2],[23,1,23,2]]}
[]
[]
[null,"Ir al MENÚ"]
[]
[null,"Tabla de vacaciones para trabajadores de no buques (art. 76 LFT)"]
[null,"Años"]
[null,"Mínimo","Máximo","Días"]
[null,0,1,12]
[null,{"$f":"C8+0.01","v":1.01},2,{"$f":"D8+2","v":14}]
[null,{"$f":"C9+0.01","v":2.0099999999999998},3,{"$f":"D9+2","v":16}]
[null,3.01,4,18]
[null,4.01,5,20]
[null,5.01,{"$f":"C12+5","v":10},22]
[null,10.01,15,24]
[null,15.01,20,26]
[null,20.010000000000002,25,28]
[null,25.01,30,30]
[null,30.01,35,32]
[]
[null,"Salario mínimo"]
[null,"Zona Libre de la Frontera Norte",419.88]
[null,"Zona del Salario Mínimo General",278.8]
[]
[null,"Valor de la UMA"]
[null,"Enero",108.57]
[null,"Febrero en adelante",113.14]
[]
[null,"Valor de la UMA mensual enero",3300.53]
[null,"Valor de la UMA mensual posterior",3439.46]
[null,"Total base ISR para subsidio",10171]
[null,"% del subsidio al empleo",0.13800000000000001]
[null,"% Subsidio al empleo Enero",0.1439]
[]
[]
[null,"Enero",{"$f":"IFERROR(DAY(EOMONTH(DATE($C$4,ROW($A1),1),0)),0)","v":31}]
[null,"Febrero",{"$f":"IFERROR(DAY(EOMONTH(DATE($C$4,ROW($A2),1),0)),0)","v":28}]
[null,"Marzo",31]
[null,"Abril",30]
[null,"Mayo",31]
[null,"Junio",30]
[null,"Julio",31]
[null,"Agosto",31]
[null,"Septiembre",30]
[null,"Octubre",31]
[null,"Noviembre",30]
[null,"Diciembre",31]

{"sheet":"GENERAL","index":17,"n_rows":117,"n_cols":10,"rows_kept":117,"cut":false,"hidden":true,"merged":[[38,2,38,9],[60,1,60,3],[70,5,70,6]]}
[]
[]
[]
[null,"Enero",{"$f":"IFERROR(DAY(EOMONTH(DATE(EMISIONM!$D$3,ROW($A1),1),0)),\"\")","v":31}]
[null,"Febrero",{"$f":"IFERROR(DAY(EOMONTH(DATE(EMISIONM!$D$3,ROW($A2),1),0)),\"\")","v":28}]
[null,"Marzo",{"$f":"IFERROR(DAY(EOMONTH(DATE(EMISIONM!$D$3,ROW($A3),1),0)),\"\")","v":31}]
[null,"Abril",{"$f":"IFERROR(DAY(EOMONTH(DATE(EMISIONM!$D$3,ROW($A4),1),0)),\"\")","v":30}]
[null,"Mayo",{"$f":"IFERROR(DAY(EOMONTH(DATE(EMISIONM!$D$3,ROW($A5),1),0)),\"\")","v":31}]
[null,"Junio",{"$f":"IFERROR(DAY(EOMONTH(DATE(EMISIONM!$D$3,ROW($A6),1),0)),\"\")","v":30}]
[null,"Julio",{"$f":"IFERROR(DAY(EOMONTH(DATE(EMISIONM!$D$3,ROW($A7),1),0)),\"\")","v":31}]
[null,"Agosto",{"$f":"IFERROR(DAY(EOMONTH(DATE(EMISIONM!$D$3,ROW($A8),1),0)),\"\")","v":31}]
[null,"Septiembre",{"$f":"IFERROR(DAY(EOMONTH(DATE(EMISIONM!$D$3,ROW($A9),1),0)),\"\")","v":30}]
[null,"Octubre",{"$f":"IFERROR(DAY(EOMONTH(DATE(EMISIONM!$D$3,ROW($A10),1),0)),\"\")","v":31}]
[null,"Noviembre",{"$f":"IFERROR(DAY(EOMONTH(DATE(EMISIONM!$D$3,ROW($A11),1),0)),\"\")","v":30}]
[null,"Diciembre",{"$f":"IFERROR(DAY(EOMONTH(DATE(EMISIONM!$D$3,ROW($A12),1),0)),\"\")","v":31}]
[]
[]
[null,"Enero - Febrero",{"$f":"IFERROR(C4+C5,\"\")","v":59}]
[null,"Marzo - Abril",{"$f":"IFERROR(C6+C7,\"\")","v":61}]
[null,"Mayo - Junio",{"$f":"IFERROR(C8+C9,\"\")","v":61}]
[null,"Julio - Agosto",{"$f":"IFERROR(C10+C11,\"\")","v":62}]
[null,"Septiembre - Octubre",{"$f":"IFERROR(C12+C13,\"\")","v":61}]
[null,"Noviembre - Diciembre",{"$f":"IFERROR(C14+C15,\"\")","v":61}]
[]
[]
[]
[]
[null,"Cesantía en edad avanzada y vejez"]
[null,"Valor mímino","Valor máximo","% a aplicar"]
[null,{"$f":"IFERROR(EMISIONB!$D$5,\"\")","v":0},{"$f":"IFERROR(EMISIONB!$D$5,\"\")","v":0},{"$f":"IFERROR(VLOOKUP(B30,$B$40:$J$48,VLOOKUP(EMISIONB!$D$3,GENERAL!$B$51:$C$58,2,FALSE),FALSE),\"\")","v":""}]
[null,{"$f":"IFERROR(ROUND(EMISIONB!$D$5*1.01,2),\"\")","v":0},{"$f":"IFERROR(ROUND(EMISIONB!$D$6*1.5,2),\"\")","v":0},{"$f":"IFERROR(VLOOKUP(B31,$B$40:$J$48,VLOOKUP(EMISIONB!$D$3,GENERAL!$B$51:$C$58,2,FALSE),FALSE),\"\")","v":""}]
[null,{"$f":"IFERROR(ROUND(EMISIONB!$D$6*1.51,2),\"\")","v":0},{"$f":"IFERROR(ROUND(EMISIONB!$D$6*2,2),\"\")","v":0},{"$f":"IFERROR(VLOOKUP(B32,$B$40:$J$48,VLOOKUP(EMISIONB!$D$3,GENERAL!$B$51:$C$58,2,FALSE),FALSE),\"\")","v":""}]
[null,{"$f":"IFERROR(ROUND(EMISIONB!$D$6*2.01,2),\"\")","v":0},{"$f":"IFERROR(ROUND(EMISIONB!$D$6*2.5,2),\"\")","v":0},{"$f":"IFERROR(VLOOKUP(B33,$B$40:$J$48,VLOOKUP(EMISIONB!$D$3,GENERAL!$B$51:$C$58,2,FALSE),FALSE),\"\")","v":""}]
[null,{"$f":"IFERROR(ROUND(EMISIONB!$D$6*2.51,2),\"\")","v":0},{"$f":"IFERROR(ROUND(EMISIONB!$D$6*3,2),\"\")","v":0},{"$f":"IFERROR(VLOOKUP(B34,$B$40:$J$48,VLOOKUP(EMISIONB!$D$3,GENERAL!$B$51:$C$58,2,FALSE),FALSE),\"\")","v":""}]
[null,{"$f":"IFERROR(ROUND(EMISIONB!$D$6*3.01,2),\"\")","v":0},{"$f":"IFERROR(ROUND(EMISIONB!$D$6*3.5,2),\"\")","v":0},{"$f":"IFERROR(VLOOKUP(B35,$B$40:$J$48,VLOOKUP(EMISIONB!$D$3,GENERAL!$B$51:$C$58,2,FALSE),FALSE),\"\")","v":""}]
[null,{"$f":"IFERROR(ROUND(EMISIONB!$D$6*3.51,2),\"\")","v":0},{"$f":"IFERROR(ROUND(EMISIONB!$D$6*4,2),\"\")","v":0},{"$f":"IFERROR(VLOOKUP(B36,$B$40:$J$48,VLOOKUP(EMISIONB!$D$3,GENERAL!$B$51:$C$58,2,FALSE),FALSE),\"\")","v":""}]
[null,{"$f":"IFERROR(ROUND(EMISIONB!$D$6*4.01,2),\"\")","v":0},99999999,{"$f":"IFERROR(VLOOKUP(B37,$B$40:$J$48,VLOOKUP(EMISIONB!$D$3,GENERAL!$B$51:$C$58,2,FALSE),FALSE),\"\")","v":""}]
[]
[null,null,"% a aplicar"]
[null,"Valor mímino",2023,2024,2025,2026,2027,2028,2029,2030]
[null,{"$f":"IFERROR(EMISIONB!$D$5,\"\")","v":0},3.15E-2,3.15E-2,3.15E-2,3.15E-2,3.15E-2,3.15E-2,3.15E-2,3.15E-2]
[null,{"$f":"IFERROR(ROUND(EMISIONB!$D$5*1.01,2),\"\")","v":0},3.2809999999999999E-2,3.4130000000000001E-2,3.5439999999999999E-2,3.6760000000000001E-2,3.807E-2,3.9390000000000001E-2,4.07E-2,4.2020000000000002E-2]
[null,{"$f":"IFERROR(ROUND(EMISIONB!$D$6*1.51,2),\"\")","v":0},3.5749999999999997E-2,0.04,4.4260000000000001E-2,4.8509999999999998E-2,5.2760000000000001E-2,5.7009999999999998E-2,6.1260000000000002E-2,6.5519999999999995E-2]
[null,{"$f":"IFERROR(ROUND(EMISIONB!$D$6*2.01,2),\"\")","v":0},3.7510000000000002E-2,4.3529999999999999E-2,4.9540000000000001E-2,5.5559999999999998E-2,6.157E-2,6.7589999999999997E-2,7.3599999999999999E-2,7.9619999999999996E-2]
[null,{"$f":"IFERROR(ROUND(EMISIONB!$D$6*2.51,2),\"\")","v":0},3.8690000000000002E-2,4.5879999999999997E-2,5.3069999999999999E-2,6.0260000000000001E-2,6.7449999999999996E-2,7.4639999999999998E-2,8.183E-2,8.9020000000000002E-2]
[null,{"$f":"IFERROR(ROUND(EMISIONB!$D$6*3.01,2),\"\")","v":0},3.9530000000000003E-2,4.7559999999999998E-2,5.5590000000000001E-2,6.361E-2,7.1639999999999995E-2,7.9670000000000005E-2,8.77E-2,9.5729999999999996E-2]
[null,{"$f":"IFERROR(ROUND(EMISIONB!$D$6*3.51,2),\"\")","v":0},4.0160000000000001E-2,4.8820000000000002E-2,5.747E-2,6.6129999999999994E-2,7.4789999999999995E-2,8.3449999999999996E-2,9.2109999999999997E-2,0.10077]
[null,{"$f":"IFERROR(ROUND(EMISIONB!$D$6*4.01,2),\"\")","v":0},4.2410000000000003E-2,5.3310000000000003E-2,6.4219999999999999E-2,7.5130000000000002E-2,8.6029999999999995E-2,9.6939999999999998E-2,0.10784000000000001,0.11874999999999999]
[]
[]
[null,2023,2]
[null,2024,3]
[null,2025,4]
[null,2026,5]
[null,2027,6]
[null,2028,7]
[null,2029,8]
[null,2030,9]
[]
[]
[null,"Tabla de vacaciones"]
[null,"Mímino","Máximo","Días",null,"Área geográfica","Salario mímino"]
[null,0,1,12,null,"Zona Libre de la Frontera Norte",419.88]
[null,{"$f":"C63+0.01","v":1.01},{"$f":"C63+1","v":2},{"$f":"D63+2","v":14},null,"Zona del Salario Mínimo General",278.8]
[null,{"$f":"C64+0.01","v":2.0099999999999998},{"$f":"C64+1","v":3},{"$f":"D64+2","v":16}]
[null,3.01,{"$f":"C65+1","v":4},18]
[null,4.01,{"$f":"C66+1","v":5},20,null,"Valor de la UMA","Importe"]
[null,5.01,{"$f":"C67+5","v":10},22,null,"Enero",103.74]
[null,10.01,{"$f":"C68+5","v":15},24,null,"Febrero en adelante",108.57]
[null,15.01,20,26]
[null,20.010000000000002,25,28,null,"Pediodicidad"]
[null,25.01,30,30,null,"Diario",1]
[null,30.01,35,32,null,"Semanal",7]
[null,35.01,40,34,null,"Catorcenal",10]
[null,40.01,45,36,null,"Quincenal",14]
[null,45.01,50,38,null,"Mensual",30]
[null,50.01,55,40]
[null,55.01,60,42]
[null,60.01,65,44]
[null,65.010000000000005,70,46]
[]
[]
[null,null,null,null,null,"www.acfmsc.com"]
[]
[]
[]
[null,1]
[null,2]
[null,3]
[null,4]
[null,5]
[null,6]
[null,7]
[null,8]
[null,9]
[null,10]
[null,11]
[null,12]
[null,13]
[null,14]
[null,15]
[null,16]
[null,17]
[null,18]
[null,19]
[null,20]
[null,21]
[null,22]
[null,23]
[null,24]
[null,25]
[null,26]
[null,27]
[null,28]
[null,29]
[null,30]
[null,31]